Workbook

Sheet Intro
A3: . . . . . . . . . . . . . . . . . . . . . . . . . . . . . . . . . . . . . . . . . . . . . . . . .
I13: Version 1.0
A14: Crop Land Rental Rate Calculator
I19: Date: January, | J19: 2024
B23: This guide is designed to provide planning information, economic considerations, and a format for calculating fair and reasonable values for crop land rental rates for both tenants and land owners to share the risks and rewards associated with annual crop production in Manitoba. General Manitoba Agriculture recommendations are assumed for input costs and economic calculations. Non economic considerations such as land care, tenure, and personal attributes are not included in the calculations but should be considered in any land rental agreement. The calculated rental values do not necessarily represent the average crop land rental rates in Manitoba.
B33: These budgets may be adjusted by putting in your own figures. As a producer you are encouraged to calculate your own crop land rental rates for land with differing productive capacity. On each farm, costs and yields differ due to soil type, climate and agronomic practices.
B39: This tool is available as an Excel worksheet at:
G47: is also available to help
B48: determine machinery costs.
B57: Note: This budget is only a guide and is not intended as an in-depth study of agricultural land values. Interpretation and use of this information is the responsibility of the user. If you need help with a budget, contact a Farm Management Specialist.

Sheet Information
B3: ="RentPlan - General Information "&Intro!J19 -> RentPlan - General Information 2024
A5: What is the fair market rent for farmland in Manitoba? This is a question that both landlords and producers ask quite often. Unfortunately there’s no rent transaction listings for land rental rates in Manitoba, making it difficult to determine what others are paying. However it is important to remember what makes rental agreements successful for both producers and landlords alike. This includes:
B9: • The landlord and producer should be open and honest with each other, and be able to resolve disagreements cordially.
B11: • To maximize long term profit, the terms of the lease should be fair to both the landlord and producer.
B12: • Written agreements help to prevent conflict between the landlord and producer, and force them to think through an equitable and reasonable lease.
B14: Manitoba Agriculture's Contracts and Leases.
B15: • Leases should be flexible enough to permit fair adjustments to any unexpected situations.
B16: • A lease should be adapted to suit each individual situation, yet remain simple enough to work.
B17: • The lease period should also be long enough to allow the producer to adopt good farming practices.
A19: There are ways to start the discussion on determining the value of fair market rent in absence of knowing what others are paying and receiving. The two most common methods of calculating fair market rent are:
A21: 1. Production cost based land rental rate.
A22: 2. Land value based rental rate.
A24: The production cost based land rental rate method is calculated from the producer’s perspective. Essentially this method determines the costs associated with growing crops, factors in the probable yield and projected price of the crops, and identifies the producer profit expectation in growing the crops. What is left is the maximum cash land rental amount that can be reasonably paid by a producer. The strength of this method is that it is a very logical way to calculate what a producer can pay for land rent – whatever is left over after all costs and profit expectation are removed is the maximum that can be paid for rent. The downside to this method is that most producers grow a combination of crops during the land rental period, making the calculations more complicated. RentPlan factors this into account by creating a weighted average for the crops grown during the rental period.
A34: The land value based rental rate method is calculated from the landowner’s perspective. This method considers the value of the land and what a similar type of investment would yield on an annual basis. The strength of this calculation is that it is easy to do – take the value of the land and multiply by a similar investment (in terms of both risk and return) rate of return. The weakness to this method is one has to know the value of the land. Land that is valued higher than the agricultural value of land (for example, land next to an urban setting that has subdivision potential) will often yield results higher than the market land rental rates. An important point to remember using this method is to choose a comparable investment rate of return for a low risk asset.
A44: Flexible Land Rental Agreements
A45: It is common for landlords who are willing to take on some risk to consider flexible land rental options. With this option, landlords can choose to capture a higher rental rate in years with above average returns, in return for receiving a lower rental rate in years with below average returns. Over the long run these rates will average out, however this option allows landowners to give a financial break to their producer tenants in poor years, while allowing them to share in the profits during a good year. An important component to these agreements is that there is a level of trust, communication and cooperation between the landlord and producer.
A53: Flexible lease agreements can be complicated so it is best to keep the procedures to calculate flexible rent simple with only 1 or 2 variables. The simplest flexible rent is only having the yield be the variable component. A range of percentage of probable yield would be agreed upon ahead of time to create the rental range for the flexible rent agreement. Another common flexible rental agreement is having both yield and grain price be the variables. With this option, it is important to determine how the grain price will be determined. Manitoba Agriculture and Resource Development’s Contracts and Leases have more great information on flexible rental agreements.
A60: Manitoba Agriculture's Contracts and Leases.
A62: Further Considerations
A63: There are some further considerations both landlords and producers should have when entering into rental agreements. Timing of payment is an important factor with most agreements ranging from 100% paid in the spring before seeding, to half in spring and half in fall after harvest, to 100% paid in fall. Generally the earlier the payment is made, the less risk there is to the landlord for non-payment, which often leads to a small discount in the cash land rental amount. Please see Rentplan’s Further Considerations page (link above) for more information on how to calculate rental discounts for early payment.
A70: Recently there has been a focus on the change in nutrient levels in soils during the duration of a land rental agreement. If a landlord has a higher nutrient level in the soil at the start of an agreement and a lower nutrient level at the end of an agreement, there is a hidden cost to the lower nutrient ending levels. Likewise, if a producer builds up the nutrient levels in the rented land during the land rental agreement and is not compensated for this, the cost of renting the land is more expensive to the producer than just the land rental amount. Please see Rentplan’s Further Considerations page (link above) for more information on how to calculate costs associated with differing nutrient levels.

Sheet User Guide
A1: Rentplan User Guide
A2: Rentplan can be used by both farm producer and landowners in Manitoba to assist in the determination of fair and reasonable crop land rental rates. Follow the steps below to successfully use RentPlan for your crop land rental rate calculation.
A6: Step #1 - Land Rent Worksheet:
B7: Crop Production, Revenue and Cost Summary:
C8: Select Crops - select your crops grown on your farm based on your planned crop rotation during the rental agreement period.
C10: Acres - enter the total acres for each crop grown on your farm to calculate the weighted average gross revenue and production costs.
C12: Probable Yield - adjust the default probable yield for each crop selected, based on your farms average yields.
C13: Price - adjust grain prices to reflect the average net market price for the duration of the crop year.
C14: Operating Costs Per Acre - to review and change operating costs, click on the link or go to the Production Costs Worksheet. Make any changes required for the crops selected for your farm's actual production costs. Use the dropdown menus to select Crop Insurance and Hail Insurance levels.
B18: Calculation #1 - Producer Production Cost Maximum Land Rental Rate:
C19: Producer Profit Expectation - enter your farms desired level of profit per acre. Typical range is $10 to $50 per acre depending on a wide range of factors specific to each individual circumstance.
C21: Production Cost Based Land Rental - low to high range is calculated in $ per acre.
C22: Share of Margin Over Operating Costs & Gross Revenue Graphs- indicate percentage share of land rent, producer profit, operating costs, equipment costs, storage costs, labour & owner salary.
B25: Calculation #2 - Land Value Based Rental Rate:
C26: Land Value - enter land value per acre. Values are typically based on assessed value or productive value rather than solely based on market or trade value.
C28: Investment Rate of Return - enter investment or opportunity cost percentage rate.
C29: Property Tax - enter your local average property tax rate in $ per acre.
C30: Land Value Based Rental Rate - is calculated in $ per acre.
A32: Step #2 - Flexible Land Rent Worksheet:
B33: Current Crop Grown - select your crop for flexible rent determination for the current year.
B34: Probable Yield Per Acre - enter your average or probable yield per acre for your farm. This can be found on your MASC Statement of Insurance or your IPI for each crop.
B36: Probable Price Per Unit - enter your projected or probable price per unit for your farm.
B37: Land Rental Rate - enter rate per acre. Default value is average of Land Rental Rate in Calculation #1.
B38: Minimum Rate % - enter percent rate, less that 100%. Typically range is 70 to 90% per acre.
B39: Maximum Rate % - enter percent rate, more that 100%. Typically range is 110 to 130% per acre.
B40: Actual Yield Per Acre - enter your final marketable yield after harvest.
B41: Actual Price Per Unit - enter your final marketed price after harvest.
B42: Flexible Land Rental Payment - is calculated in $ per acre.
A44: Step #3 - Further Considerations:
B45: #1 Land Rental Breakeven Calculations: For the range of land rental rates the share of margin over operating costs and gross revenue are calculated. The breakeven (before profit) land rental rate is calculated and the share of margin over operating costs and gross revenue.
B48: #2 Flexible Land Rental Breakeven Calculation: The breakeven (before profit) yield and percentage of probable yield is calculated.
B50: #3 Estimated Land Value Calculation - Based on Land Rental Rates: A range of estimated land market values are calculated based on land rental rates and investment rate of returns.
B52: #4 Discount for Early Payment - enter operating interest rate (time value of money) percentage to calculate the value of early full or partial payment discount for producers.
B54: #5 Soil Test (Nutrient Bank) Level Comparison - enter nitrogen and phosphate soil test values, term of rental agreement, and current fertilizer costs per tonne to calculate the change in value of nutrient bank account balance.
B56: #5 Total Landowner Return on Asset (ROA) - enter long term annual land value appreciation rate percentage. To calculate landowner total ROA of land rent payable and land value appreciation.
B58: #7 Local Area Land Rental Rate Comparison - enter local area low range and high range land rental rates (if known) to calculate comparison to cashflow or investment rate of return land rental rate payable.
A61: Step #4 - Information:
B62: Refer to the Information page for more in- depth information on both the producer and landowner perspectives in calculating fair and reasonable crop land rental rates. Links to other Manitoba Agriculture and Resource Development resources can also be found here.

Sheet Land Rent
A2: . . . . . . . . . . . . . . . . . . . . . . . . . . . . . . . . . . . . . . . . . . . . . . . . . . . . . . . . . . .
A3: Land Rental Rate Calculation | I3: Printed: | J3: =TODAY() -> 2023-12-11
A4: Note: Land rental rate analysis is part of long term strategic planning for your farm and caution should be exercised if short term crop yields and prices are utilized. It is generally recommended for land rental rate planning and analysis that a minimum of 3 to 5 year average crop yields and commodity price outlook should be considered. | R4: Manitoba | S4: Risk Area #1 | T4: Risk Area #2 | U4: Risk Area #3 | V4: Risk Area #4 | W4: Risk Area #5 | X4: Risk Area #6 | Y4: Risk Area #7 | Z4: Risk Area #8 | AA4: Risk Area #9 | AB4: Risk Area #10 | AC4: Risk Area #11 | AD4: Risk Area #12 | AE4: Risk Area #32 | AF4: Risk Area #14 | AG4: Risk Area #15 | AH4: Risk Area #16
Q5: (Select Crop) | R5: Wheat - Hard Red Spring | S5: Wheat - Northern Hard Red | T5: Wheat - Prairie Spring | U5: Wheat - Winter | V5: Oats | W5: Barley | X5: Hybrid Fall Rye | Y5: Corn | Z5: Canola | AA5: Soybeans | AB5: Sunflower | AC5: Flaxseed | AD5: Peas | AE5: Beans - Pinto | AF5: Beans - White | AG5: Beans - Black | AH5: ='Production Costs'!U5 -> Other Crop | AI5: ='Production Costs'!V5 -> Other Crop
A8: =Intro!J19&" Crop Production, Revenue & Cost Summary " -> 2024 Crop Production, Revenue & Cost Summary
A9: =IF('Production Costs'!B30="Manitoba","",'Production Costs'!B30) ->  | C9: Your Farm | D9: Canola | E9: Wheat - Hard Red Spring | F9: Soybeans | G9: Oats | H9: (Select Crop) | I9: (Select Crop) | J9: (Select Crop) | R9: Canola | S9: Wheat - Hard Red Spring | T9: Soybeans | U9: (Select Crop) | V9: (Select Crop) | W9: (Select Crop) | X9: (Select Crop)
A11: Your Crop Acres | C11: =SUM(D11:J11) -> 2500 | D11: 1000 | E11: 500 | F11: 500 | G11: 500 | H11: 0 | I11: 0 | J11: 0 | R11: 1000 | S11: 1000 | T11: 500 | U11: 0 | V11: 0 | W11: 0 | X11: 0
B12: (Percent of Crop Rotation) | C12: =SUM(D12:J12) -> 1 | D12: =IF(D11=0,"",D11/$C$11) -> 0.4 | E12: 0.2 | F12: 0.2 | G12: 0.2
A14: Probable Yield per Acre (bu or lb.) | D14: =IF($D$9="(select crop)",0,HLOOKUP('Production Costs'!$B$30,'Data (HIDE)'!$A$3:$F$19,VLOOKUP('Land Rent '!$D$9,'Data (HIDE)'!$A$49:$C$65,3,FALSE),FALSE)) -> 42 | E14: =IF($E$9="(select crop)",0,HLOOKUP('Production Costs'!$B$30,'Data (HIDE)'!$A$3:$F$19,VLOOKUP('Land Rent '!$E$9,'Data (HIDE)'!$A$49:$C$65,3,FALSE),FALSE)) -> 60 | F14: =IF($F$9="(select crop)",0,HLOOKUP('Production Costs'!$B$30,'Data (HIDE)'!$A$3:$F$19,VLOOKUP('Land Rent '!$F$9,'Data (HIDE)'!$A$49:$C$65,3,FALSE),FALSE)) -> 35 | G14: =IF($G$9="(select crop)",0,HLOOKUP('Production Costs'!$B$30,'Data (HIDE)'!$A$3:$F$19,VLOOKUP('Land Rent '!$G$9,'Data (HIDE)'!$A$49:$C$65,3,FALSE),FALSE)) -> 105 | H14: =IF($H$9="(select crop)",0,HLOOKUP('Production Costs'!$B$30,'Data (HIDE)'!$A$3:$F$19,VLOOKUP('Land Rent '!$H$9,'Data (HIDE)'!$A$49:$C$65,3,FALSE),FALSE)) -> 0 | I14: =IF($I$9="(select crop)",0,HLOOKUP('Production Costs'!$B$30,'Data (HIDE)'!$A$3:$F$19,VLOOKUP('Land Rent '!$I$9,'Data (HIDE)'!$A$49:$C$65,3,FALSE),FALSE)) -> 0 | J14: =IF($J$9="(select crop)",0,HLOOKUP('Production Costs'!$B$30,'Data (HIDE)'!$A$3:$F$19,VLOOKUP('Land Rent '!$J$9,'Data (HIDE)'!$A$49:$C$65,3,FALSE),FALSE)) -> 0 | R14: =IF($D$9="(select crop)",0,HLOOKUP('Production Costs'!$B$30,'Data (HIDE)'!$A$3:$F$19,VLOOKUP('Land Rent '!$D$9,'Data (HIDE)'!$A$49:$C$65,3,FALSE),FALSE)) -> 42 | S14: =IF($E$9="(select crop)",0,HLOOKUP('Production Costs'!$B$30,'Data (HIDE)'!$A$3:$F$19,VLOOKUP('Land Rent '!$E$9,'Data (HIDE)'!$A$49:$C$65,3,FALSE),FALSE)) -> 60 | T14: =IF($F$9="(select crop)",0,HLOOKUP('Production Costs'!$B$30,'Data (HIDE)'!$A$3:$F$19,VLOOKUP('Land Rent '!$F$9,'Data (HIDE)'!$A$49:$C$65,3,FALSE),FALSE)) -> 35 | U14: =IF($G$9="(select crop)",0,HLOOKUP('Production Costs'!$B$30,'Data (HIDE)'!$A$3:$F$19,VLOOKUP('Land Rent '!$G$9,'Data (HIDE)'!$A$49:$C$65,3,FALSE),FALSE)) -> 105 | V14: =IF($H$9="(select crop)",0,HLOOKUP('Production Costs'!$B$30,'Data (HIDE)'!$A$3:$F$19,VLOOKUP('Land Rent '!$H$9,'Data (HIDE)'!$A$49:$C$65,3,FALSE),FALSE)) -> 0 | W14: =IF($I$9="(select crop)",0,HLOOKUP('Production Costs'!$B$30,'Data (HIDE)'!$A$3:$F$19,VLOOKUP('Land Rent '!$I$9,'Data (HIDE)'!$A$49:$C$65,3,FALSE),FALSE)) -> 0 | X14: =IF($J$9="(select crop)",0,HLOOKUP('Production Costs'!$B$30,'Data (HIDE)'!$A$3:$F$19,VLOOKUP('Land Rent '!$J$9,'Data (HIDE)'!$A$49:$C$65,3,FALSE),FALSE)) -> 0
A16: Price ($ per Unit) | D16: =IF($D$9="(select crop)",0,VLOOKUP('Land Rent '!$D$9,'Data (HIDE)'!$A$49:$C$65,2,FALSE)) -> 15.75 | E16: =IF($E$9="(select crop)",0,VLOOKUP('Land Rent '!$E$9,'Data (HIDE)'!$A$49:$C$65,2,FALSE)) -> 9.25 | F16: =IF($F$9="(select crop)",0,VLOOKUP('Land Rent '!$F$9,'Data (HIDE)'!$A$49:$C$65,2,FALSE)) -> 15.25 | G16: =IF($G$9="(select crop)",0,VLOOKUP('Land Rent '!$G$9,'Data (HIDE)'!$A$49:$C$65,2,FALSE)) -> 5 | H16: =IF($H$9="(select crop)",0,VLOOKUP('Land Rent '!$H$9,'Data (HIDE)'!$A$49:$C$65,2,FALSE)) -> 0 | I16: =IF($I$9="(select crop)",0,VLOOKUP('Land Rent '!$I$9,'Data (HIDE)'!$A$49:$C$65,2,FALSE)) -> 0 | J16: =IF($J$9="(select crop)",0,VLOOKUP('Land Rent '!$J$9,'Data (HIDE)'!$A$49:$C$65,2,FALSE)) -> 0 | R16: =IF($D$9="(select crop)",0,VLOOKUP('Land Rent '!$D$9,'Data (HIDE)'!$A$49:$C$65,2,FALSE)) -> 15.75 | S16: =IF($E$9="(select crop)",0,VLOOKUP('Land Rent '!$E$9,'Data (HIDE)'!$A$49:$C$65,2,FALSE)) -> 9.25 | T16: =IF($F$9="(select crop)",0,VLOOKUP('Land Rent '!$F$9,'Data (HIDE)'!$A$49:$C$65,2,FALSE)) -> 15.25 | U16: =IF($G$9="(select crop)",0,VLOOKUP('Land Rent '!$G$9,'Data (HIDE)'!$A$49:$C$65,2,FALSE)) -> 5 | V16: =IF($H$9="(select crop)",0,VLOOKUP('Land Rent '!$H$9,'Data (HIDE)'!$A$49:$C$65,2,FALSE)) -> 0 | W16: =IF($I$9="(select crop)",0,VLOOKUP('Land Rent '!$I$9,'Data (HIDE)'!$A$49:$C$65,2,FALSE)) -> 0 | X16: =IF($J$9="(select crop)",0,VLOOKUP('Land Rent '!$J$9,'Data (HIDE)'!$A$49:$C$65,2,FALSE)) -> 0
A18: Operating Costs/Acre | C18: =IF($C$12<>100%,"ERROR",SUM(IF(D$12="",0,D18*$D$12)+IF(E$12="",0,E18*$E$12)+IF(F$12="",0,F18*$F$12)+IF(G$12="",0,G18*$G$12)+IF(H$12="",0,H18*$H$12)+IF(J$12="",0,J18*$J$12)+IF(I$12="",0,I18*$I$12))) -> 370.0560482 | D18: =IF(OR(D9="(select crop)",D11=0),"",HLOOKUP('Land Rent '!D9,'Production Costs'!$A$5:$V$25,14,FALSE)) -> 435.3541965 | E18: =IF(OR(E9="(select crop)",E11=0),"",HLOOKUP('Land Rent '!E9,'Production Costs'!$A$5:$V$25,14,FALSE)) -> 367.5606459 | F18: =IF(OR(F9="(select crop)",F11=0),"",HLOOKUP('Land Rent '!F9,'Production Costs'!$A$5:$V$25,14,FALSE)) -> 301.7461961 | G18: =IF(OR(G9="(select crop)",G11=0),"",HLOOKUP('Land Rent '!G9,'Production Costs'!$A$5:$V$25,14,FALSE)) -> 310.2650059 | H18: =IF(OR(H9="(select crop)",H11=0),"",HLOOKUP('Land Rent '!H9,'Production Costs'!$A$5:$V$25,14,FALSE)) ->  | I18: =IF(OR(I9="(select crop)",I11=0),"",HLOOKUP('Land Rent '!I9,'Production Costs'!$A$5:$V$25,14,FALSE)) ->  | J18: =IF(OR(J9="(select crop)",J11=0),"",HLOOKUP('Land Rent '!J9,'Production Costs'!$A$5:$V$25,14,FALSE)) -> 
A19: Owner Labour & Living/Ac | C19: =IF($C$12<>100%,"ERROR",SUM(IF(D$12="",0,D19*$D$12)+IF(E$12="",0,E19*$E$12)+IF(F$12="",0,F19*$F$12)+IF(G$12="",0,G19*$G$12)+IF(H$12="",0,H19*$H$12)+IF(J$12="",0,J19*$J$12)+IF(I$12="",0,I19*$I$12))) -> 27 | D19: =IF(D9="(select crop)","",HLOOKUP('Land Rent '!D9,'Production Costs'!$A$5:$V$25,19,FALSE)) -> 27 | E19: =IF(E9="(select crop)","",HLOOKUP('Land Rent '!E9,'Production Costs'!$A$5:$V$25,19,FALSE)) -> 27 | F19: =IF(F9="(select crop)","",HLOOKUP('Land Rent '!F9,'Production Costs'!$A$5:$V$25,19,FALSE)) -> 27 | G19: =IF(G9="(select crop)","",HLOOKUP('Land Rent '!G9,'Production Costs'!$A$5:$V$25,19,FALSE)) -> 27 | H19: =IF(H9="(select crop)","",HLOOKUP('Land Rent '!H9,'Production Costs'!$A$5:$V$25,19,FALSE)) ->  | I19: =IF(I9="(select crop)","",HLOOKUP('Land Rent '!I9,'Production Costs'!$A$5:$V$25,19,FALSE)) ->  | J19: =IF(J9="(select crop)","",HLOOKUP('Land Rent '!J9,'Production Costs'!$A$5:$V$25,19,FALSE)) ->  | L19: **HIDE**
A20: Equipment Costs/Acre | C20: =IF($C$12<>100%,"ERROR",SUM(IF(D$12="",0,D20*$D$12)+IF(E$12="",0,E20*$E$12)+IF(F$12="",0,F20*$F$12)+IF(G$12="",0,G20*$G$12)+IF(H$12="",0,H20*$H$12)+IF(J$12="",0,J20*$J$12)+IF(I$12="",0,I20*$I$12))) -> 89.1459975 | D20: =IF(D9="(select crop)","",HLOOKUP('Land Rent '!D9,'Production Costs'!$A$5:$V$25,17,FALSE)) -> 89.1459975 | E20: =IF(E9="(select crop)","",HLOOKUP('Land Rent '!E9,'Production Costs'!$A$5:$V$25,17,FALSE)) -> 89.1459975 | F20: =IF(F9="(select crop)","",HLOOKUP('Land Rent '!F9,'Production Costs'!$A$5:$V$25,17,FALSE)) -> 89.1459975 | G20: =IF(G9="(select crop)","",HLOOKUP('Land Rent '!G9,'Production Costs'!$A$5:$V$25,17,FALSE)) -> 89.1459975 | H20: =IF(H9="(select crop)","",HLOOKUP('Land Rent '!H9,'Production Costs'!$A$5:$V$25,17,FALSE)) ->  | I20: =IF(I9="(select crop)","",HLOOKUP('Land Rent '!I9,'Production Costs'!$A$5:$V$25,17,FALSE)) ->  | J20: =IF(J9="(select crop)","",HLOOKUP('Land Rent '!J9,'Production Costs'!$A$5:$V$25,17,FALSE)) ->  | L20: **HIDE**
A22: Gross Revenue per Acre1 | C22: =IF(C12<>100%,"ERROR",SUM(IF(D12="",0,D22*$D$12)+IF(E12="",0,E22*$E$12)+IF(F12="",0,F22*$F$12)+IF(G12="",0,G22*$G$12)+IF(H12="",0,H22*$H$12)+IF(J12="",0,J22*$J$12)+IF(I12="",0,I22*$I$12))) -> 587.35 | D22: =IF(D12="","",SUM(D16*D14)) -> 661.5 | E22: 555 | F22: 533.75 | G22: 525
A24: Marginal Return
B25: Over Operating Costs | C25: =IF($C$12<>100%,"ERROR",SUM(IF(D$12="",0,D25*$D$12)+IF(E$12="",0,E25*$E$12)+IF(F$12="",0,F25*$F$12)+IF(G$12="",0,G25*$G$12)+IF(H$12="",0,H25*$H$12)+IF(J$12="",0,J25*$J$12)+IF(I$12="",0,I25*$I$12))) -> 217.2939518 | D25: =IF(OR(D9="(select crop)",D11=0),"",D22-D18) -> 226.1458035 | E25: 187.4393541 | F25: 232.0038039 | G25: 214.7349941
A28: 1. Gross Revenue Per Acre = Price per unit x Yield per acre (weighted based on % of crop rotation)
A30: Calculation Option #1 - Production Cost Based Land Rental Rate
H32: Per Acre
C33: Gross revenue | H33: =C22 -> 587.35
B34: - | C34: Operating Costs | H34: =C18 -> 370.0560482
B35: - | C35: Owner Labour & Living Costs | H35: =C19 -> 27
B36: - | C36: Equipment Costs | H36: =C20 -> 89.1459975
B37: = | C37: Maximum Breakeven Land Rental (before profit) | H37: =SUM(H33-H34-H35-H36) -> 101.1479543
G39: Per Acre | I39: Per Acre
C40: Producer Profit Expectation (range) | G40: 15 | I40: 30
B42: = | C42: Production Cost Based Rental Rate | H42: =" $"&ROUND(SUM(H37-I40),0)&" to $"&ROUND(SUM(H37-G40),0)&" (Avg. $"&ROUND(((H37-I40)+(H37-G40))/2,0)&"/acre)" -> $71 to $86 (Avg. $79/acre)
B43: = | C43: Maximum Cash Land Rental Payable | G43: =ROUND(SUM(H37-I40),0) -> 71 | H43: to | I43: =ROUND(SUM(H37-G40),0) -> 86
C63: Landowner Share (gross revenue) | G63: =ROUND((I43/C22)*100,1) -> 14.6 | H63: % | M63: **HIDE**
C64: Landowner Share (margin over operating) | G64: =ROUND((I43/(C25))*100,1) -> 39.6 | H64: % | M64: **HIDE**
C65: Landowner Return on Asset (ROA) | G65: =SUM((G43-H77)/(H75)) -> 0.01710843373 | I65: =SUM((I43-H77)/(H75)) -> 0.02072289157 | J65: =SUM((((G43+I43)/2)-H77)/(H75)) -> 0.01891566265 | M65: **HIDE**
I66: **based on land value and taxes below*** | M66: **HIDE**
C67: Producer Profit Share (gross revenue) | G67: =SUM(G40/H33)*100 -> 2.553843535 | H67: % | I67: =SUM(I40/H33)*100 -> 5.107687069 | J67: % | M67: **HIDE**
C68: Producer Profit Share (margin over operating) | G68: =SUM(G40/C25)*100 -> 6.903091354 | H68: % | I68: =SUM(I40/C25)*100 -> 13.80618271 | J68: % | M68: **HIDE**
C69: Producer Return on Investment (ROI) | G69: =SUM((C22-(C18+C19+C20+I43))/(C18+C19+C20+I43)) -> 0.02647308657 | I69: =SUM((C22-(C18+C19+C20+G43))/(C18+C19+C20+G43)) -> 0.05410596484 | J69: =SUM((C22-(C18+C19+C20+((G43+I43)/2)))/(C18+C19+C20+((G43+I43)/2))) -> 0.04010602488 | L69: =SUM((C22-(C18+C19+C20+H37))/(C18+C19+C20+H37)) -> 0 | M69: **HIDE**
B70: Cash Land Rent: | M70: **HIDE**
B71: Breakeven % of Gross Revenue (Max BE Land Rental/Gross Revenue) | G71: =SUM(H37/C22) -> 0.1722106994 | M71: **HIDE**
B72: Breakeven % of MOA (Max BE Land Rental/MOA) | G72: =SUM(H37/C25) -> 0.4654890459 | M72: **HIDE**
A74: Calculation Option #2 - Land Value Based Rental Rate
C75: Land Value (local market or assessed value) | H75: 4150 | I75: /acre
B76: x | C76: Investment Rate of Return | G76: 2.25 | H76: % to | I76: 2.75 | J76: %
B77: + | C77: Property taxes (area average value) | H77: 0 | I77: /acre
B79: = | C79: Land Value Based Rental Rate | G79: ="$"&G87&" to $"&H87&"/acre (Avg. $"&I87&"/acre) " -> $93 to $114/acre (Avg. $104/acre)
G80: ="(Average Rent to Land Price ratio "&TEXT((I87/H75)*100,"0.0")&"%)" -> (Average Rent to Land Price ratio 2.5%)
C82: Gross revenue | G82: =C22 -> 587.35 | M82: **HIDE**
B83: - | C83: Operating Costs | G83: =C18 -> 370.0560482 | M83: **HIDE**
B84: - | C84: Labour /Owner Salary Costs | G84: =C19 -> 27 | M84: **HIDE**
B85: - | C85: Equipment Costs | G85: =C20 -> 89.1459975 | M85: **HIDE**
B86: - | C86: Storage Costs | M86: **HIDE**
B87: - | C87: Land Rent | G87: =ROUND(SUM($H$75*(G$76/100))+$H$77,0) -> 93 | H87: =ROUND(SUM($H$75*(I$76/100))+$H$77,0) -> 114 | I87: =ROUND(AVERAGE(G87:H87),0) -> 104 | M87: **HIDE**
B88: = | C88: Producer Profit Margin | G88: =ROUND(SUM($G$82-$G$83-$G$84-$G$85-$G$86)-G87,0) -> 8 | H88: =ROUND(SUM($G$82-$G$83-$G$84-$G$85-$G$86)-H87,0) -> -13 | I88: =ROUND(SUM($G$82-$G$83-$G$84-$G$85-$G$86)-I87,0) -> -3
C90: Producer Return on Investment (ROI) | G90: =SUM(($G$82-($G$83+$G$85+$G$86+$G$84+G87))/($G$83+$G$85+$G$86+$G$84+G87)) -> 0.01406755096 | H90: =SUM(($G$82-($G$83+$G$85+$G$86+$G$84+H87))/($G$83+$G$85+$G$86+$G$84+H87)) -> -0.02141286555 | M90: **HIDE**
C91: Landowner Return on Asset (ROA) | G91: =SUM((G87-$H$77)/($H$75)) -> 0.02240963855 | H91: =SUM((H87-$H$77)/($H$75)) -> 0.02746987952 | M91: **HIDE**
A92: Land Rental Analysis
A139: Note: This budget is only a guide and is not intended as an in-depth study of agricultural land values. Interpretation and use of this information is the responsibility of the user. If you need help with a budget, contact a Farm Management Specialist.

Sheet Flexible Land Rent
A2: . . . . . . . . . . . . . . . . . . . . . . . . . . . . . . . . . . . . . . . . . . . . . . . . . . . . . . . . . . .
A3: Flexible Land Rental Calculation | I3: Printed: | J3: =TODAY() -> 2023-12-11
R4: ='Land Rent '!D9 -> Canola | S4: ='Land Rent '!E9 -> Wheat - Hard Red Spring | T4: ='Land Rent '!F9 -> Soybeans | U4: ='Land Rent '!G9 -> Oats | V4: ='Land Rent '!H9 -> (Select Crop) | W4: ='Land Rent '!I9 -> (Select Crop) | X4: ='Land Rent '!J9 -> (Select Crop)
A5: Minimum & Maximum Rental Rate Calculation
A7: Step #1 | E7: Current Year Crop to be Grown | F7: Wheat - Hard Red Spring
A8: Step #2
D9: ="Probable "&F7&" Yield per Acre" -> Probable Wheat - Hard Red Spring Yield per Acre | E9: =IF($F$7="(select crop)",0,HLOOKUP('Production Costs'!$B$30,'Data (HIDE)'!$A$3:$F$19,VLOOKUP($F$7,'Data (HIDE)'!$A$49:$C$65,3,FALSE),FALSE)) -> 60 | F9: (bu or lb.) | S9: =IF($F$7="(select crop)",0,HLOOKUP('Production Costs'!$B$30,'Data (HIDE)'!$A$3:$F$19,VLOOKUP($F$7,'Data (HIDE)'!$A$49:$C$65,3,FALSE),FALSE)) -> 60
D10: ="Probable "&F7&" Price per Unit" -> Probable Wheat - Hard Red Spring Price per Unit | E10: =IF($F$7="(select crop)",0,VLOOKUP($F$7,'Data (HIDE)'!$A$49:$C$65,2,FALSE)) -> 9.25 | F10: (bu or lb.) | S10: =IF($F$7="(select crop)",0,VLOOKUP($F$7,'Data (HIDE)'!$A$49:$C$65,2,FALSE)) -> 9.25
A12: Step #3 | D12: Land Rental Rate | E12: =('Land Rent '!$G$43+'Land Rent '!$I$43)/2 -> 78.5 | F12: /acre | S12: =('Land Rent '!$G$43+'Land Rent '!$I$43)/2 -> 78.5 | T12: /acre
A15: Step #4
A16: x | B16: 80 | C16: % | F16: x | G16: 120 | H16: % | S16: 80 | T16: % reduction | W16: + | X16: 120
A17: = | B17: =ROUND(SUM($E$12*($B$16/100)),0) -> 63 | C17: /acre Minimum Rental Rate | F17: = | G17: =ROUND(SUM($E$12*($G$16/100)),0) -> 94 | H17: /acre Maximum Rental Rate | S17: =ROUND(SUM($E$12*($B$16/100)),0) -> 63 | T17: /acre | W17: = | X17: =ROUND(SUM($E$12*($G$16/100)),0) -> 94
A20: Flexible Land Rental Rate Calculation
A23: Step #5 | E23: =IF($F$7="(select crop)",0,HLOOKUP('Production Costs'!$B$30,'Data (HIDE)'!$A$3:$F$19,VLOOKUP($F$7,'Data (HIDE)'!$A$49:$C$65,3,FALSE),FALSE)) -> 60 | F23: ="Actual "&F7&" Yield per Acre (bu or lb)" -> Actual Wheat - Hard Red Spring Yield per Acre (bu or lb) | S23: =IF($F$7="(select crop)",0,HLOOKUP('Production Costs'!$B$30,'Data (HIDE)'!$A$3:$F$19,VLOOKUP($F$7,'Data (HIDE)'!$A$49:$C$65,3,FALSE),FALSE)) -> 60
E24: =IF($F$7="(select crop)",0,VLOOKUP($F$7,'Data (HIDE)'!$A$49:$C$65,2,FALSE)) -> 9.25 | F24: ="Actual "&F7&" Price ($/unit)" -> Actual Wheat - Hard Red Spring Price ($/unit) | S24: =IF($F$7="(select crop)",0,VLOOKUP($F$7,'Data (HIDE)'!$A$49:$C$65,2,FALSE)) -> 9.25
D25: ÷ | E25: =E9 -> 60 | F25: ="Probable "&F7&" Yield per Acre (bu or lb)" -> Probable Wheat - Hard Red Spring Yield per Acre (bu or lb)
D26: ÷ | E26: =E10 -> 9.25 | F26: ="Probable "&F7&" Price per Unit (bu or lb)" -> Probable Wheat - Hard Red Spring Price per Unit (bu or lb)
D27: = | E27: =SUM(E23/E9)*(E24/E10)*100 -> 100 | F27: % of Probable Yield & Price Factor
D29: x | E29: =E12 -> 78.5 | F29: Land Rental Rate
D30: = | E30: =ROUND(SUM(E29*((E27/100))),0) -> 79 | F30: /acre Flex Rental Value (after harvest) | S30: =ROUND(E27,0)&"% = ("&$E$23&" bu actual yield / "&$E$9&" bu probable yield) X ($"&$E$24&"/bu actual price / "&$E$10&"/bu probable price)" -> 100% = (60 bu actual yield / 60 bu probable yield) X ($9.25/bu actual price / 9.25/bu probable price)
C34: ="If less than Minimum Rate, then $"&B17&"/acre" -> If less than Minimum Rate, then $63/acre | G34: ="If more than Maximum Rate, then $"&G17&"/acre" -> If more than Maximum Rate, then $94/acre
D39: ="Total Flexible Land Rental Payment Due = $"&IF(E30<B17,B17,IF(E30>G17,G17,E30))&"/acre" -> Total Flexible Land Rental Payment Due = $79/acre
A40: Step #6
A43: Flexible Land Rental Analysis
C70: Landowner Share (gross revenue) | G70: =ROUND((G86/G78)*100,1) -> 14.2 | H70: % | I70: FLEX | M70: **HIDE**
C71: Landowner Share (margin over operating) | G71: =ROUND((G86/(G78-G79))*100,1) -> 42.1 | H71: % | I71: FLEX | M71: **HIDE**
C72: Landowner Return on Asset (ROA) | G72: =SUM((G86-'Land Rent '!$H$77)/('Land Rent '!$H$75)) -> 0.01903614458 | I72: FLEX | M72: **HIDE**
I73: FLEX
C74: Producer Profit Share (gross revenue) | G74: =SUM(G85/G78)*100 -> -1.388584402 | H74: % | I74: FLEX | M74: **HIDE**
C75: Producer Profit Share (margin over operating) | G75: =SUM(G85/(G78-G79)*100) -> -4.111539687 | H75: % | I75: FLEX | M75: **HIDE**
C76: Producer Return on Investment (ROI) | G76: =SUM((G78-(G79+G80+G81+G82+G86))/(G79+G80+G81+G82+G86)) -> -0.01369566811 | H76: % | I76: FLEX | M76: **HIDE**
C78: Gross revenue | G78: =HLOOKUP('Flexible Land Rent'!$F$7,'Land Rent '!$D$9:$J$26,8,FALSE)*E23 -> 555 | I78: FLEX | M78: **HIDE**
B79: - | C79: Operating Costs | G79: =HLOOKUP('Flexible Land Rent'!$F$7,'Land Rent '!$D$9:$J$26,10,FALSE) -> 367.5606459 | I79: FLEX | M79: **HIDE** | O79: =SUM(G79:G82)+G86 -> 562.7066434 | P79: costs
B80: - | C80: Labour /Owner Salary Costs | G80: =HLOOKUP('Flexible Land Rent'!$F$7,'Land Rent '!$D$9:$J$26,11,FALSE) -> 27 | I80: FLEX | M80: **HIDE** | O80: =E24 -> 9.25 | P80: price
B81: - | C81: Equipment Costs | G81: =HLOOKUP('Flexible Land Rent'!$F$7,'Land Rent '!$D$9:$J$26,12,FALSE) -> 89.1459975 | I81: FLEX | M81: **HIDE** | O81: =SUM(O79/O80) -> 60.83315064 | P81: bu BE Yield
B82: - | C82: Storage Costs | G82: =HLOOKUP('Flexible Land Rent'!$F$7,'Land Rent '!$D$9:$J$26,13,FALSE) -> 0 | I82: FLEX | M82: **HIDE** | O82: =O81/E9 -> 1.013885844 | P82: ="or "&ROUND(O81,1)&" bu to BE" -> or 60.8 bu to BE
B83: = | C83: Maximum Breakeven Land Rental | G83: =SUM(G78-G79-G80-G81-G82) -> 71.29335657 | I83: FLEX | M83: **HIDE** | O83: =ROUND(O81,1)&" bu or "&ROUND(O82*100,1)&"% of probable yield to BE" -> 60.8 bu or 101.4% of probable yield to BE
M84: **HIDE**
B85: - | C85: Producer Profit | G85: =SUM(G83-IF($E$30<$B$17,$B$17,IF($E$30>$G$17,$G$17,$E$30))) -> -7.706643432 | H85: /acre | I85: FLEX | M85: **HIDE**
B86: = | C86: Cash Land Rental Payable | G86: =ROUND(SUM(G83-G85),0) -> 79 | H86: /acre | I86: FLEX | M86: **HIDE**
C88: Landowner Share (gross revenue) | G88: =ROUND((G104/G96)*100,1) -> 14.2 | H88: % | I88: BASE | M88: **HIDE**
C89: Landowner Share (margin over operating) | G89: =ROUND((G104/(G96-G97))*100,1) -> 82.4 | H89: % | I89: BASE | M89: **HIDE**
C90: Landowner Return on Asset (ROA) | G90: =SUM((G104-'Land Rent '!$H$77)/('Land Rent '!$H$75)) -> 0.01518072289 | I90: BASE | M90: **HIDE**
I91: BASE
C92: Producer Profit Share (gross revenue) | G92: =SUM(G103/G96)*100 -> -23.1321269 | H92: % | I92: BASE | M92: **HIDE**
C93: Producer Profit Share (margin over operating) | G93: =SUM(G103/(G96-G97)*100) -> -134.3635679 | H93: % | I93: BASE | M93: **HIDE**
C94: Producer Return on Investment (ROI) | G94: =SUM((G96-(G97+G98+G99+G100+G104))/(G97+G98+G99+G100+G104)) -> -0.1878642681 | H94: % | I94: BASE | M94: **HIDE**
C96: Gross revenue | G96: =HLOOKUP('Flexible Land Rent'!$F$7,'Land Rent '!$D$9:$J$26,8,FALSE)*ROUND($E$9*($B$16/100),0) -> 444 | I96: BASE | M96: **HIDE**
B97: - | C97: Operating Costs | G97: =HLOOKUP('Flexible Land Rent'!$F$7,'Land Rent '!$D$9:$J$26,10,FALSE) -> 367.5606459 | I97: BASE | M97: **HIDE**
B98: - | C98: Labour /Owner Salary Costs | G98: =HLOOKUP('Flexible Land Rent'!$F$7,'Land Rent '!$D$9:$J$26,11,FALSE) -> 27 | I98: BASE | M98: **HIDE**
B99: - | C99: Equipment Costs | G99: =HLOOKUP('Flexible Land Rent'!$F$7,'Land Rent '!$D$9:$J$26,12,FALSE) -> 89.1459975 | I99: BASE | M99: **HIDE**
B100: - | C100: Storage Costs | G100: =HLOOKUP('Flexible Land Rent'!$F$7,'Land Rent '!$D$9:$J$26,13,FALSE) -> 0 | I100: BASE | M100: **HIDE**
B101: = | C101: Maximum Breakeven Land Rental | G101: =SUM(G96-G97-G98-G99-G100) -> -39.70664343 | I101: BASE | M101: **HIDE**
I102: BASE | M102: **HIDE**
B103: - | C103: Producer Profit | G103: =SUM(G101-B17) -> -102.7066434 | H103: /acre | I103: BASE | M103: **HIDE**
B104: = | C104: Cash Land Rental Payable | G104: =ROUND(SUM(G101-G103),0) -> 63 | H104: /acre | I104: BASE | M104: **HIDE**
C106: Landowner Share (gross revenue) | G106: =ROUND((G122/G114)*100,1) -> 14.1 | H106: % | I106: MAX | M106: **HIDE**
C107: Landowner Share (margin over operating) | G107: =ROUND((G122/(G114-G115))*100,1) -> 31.5 | H107: % | I107: MAX | M107: **HIDE**
C108: Landowner Return on Asset (ROA) | G108: =SUM((G122-'Land Rent '!$H$77)/('Land Rent '!$H$75)) -> 0.02265060241 | I108: MAX | M108: **HIDE**
I109: MAX
C110: Producer Profit Share (gross revenue) | G110: =SUM(G121/G114)*100 -> 13.25726075 | H110: % | I110: MAX | M110: **HIDE**
C111: Producer Profit Share (margin over operating) | G111: =SUM(G121/(G114-G115)*100) -> 29.58502468 | H111: % | I111: MAX | M111: **HIDE**
C112: Producer Return on Investment (ROI) | G112: =SUM((G114-(G115+G116+G117+G118+G122))/(G115+G116+G117+G118+G122)) -> 0.1528342413 | H112: % | I112: MAX | M112: **HIDE**
C114: Gross revenue | G114: =HLOOKUP('Flexible Land Rent'!$F$7,'Land Rent '!$D$9:$J$26,8,FALSE)*ROUND($E$9*($G$16/100),0) -> 666 | I114: MAX | M114: **HIDE**
B115: - | C115: Operating Costs | G115: =HLOOKUP('Flexible Land Rent'!$F$7,'Land Rent '!$D$9:$J$26,10,FALSE) -> 367.5606459 | I115: MAX | M115: **HIDE**
B116: - | C116: Labour /Owner Salary Costs | G116: =HLOOKUP('Flexible Land Rent'!$F$7,'Land Rent '!$D$9:$J$26,11,FALSE) -> 27 | I116: MAX | M116: **HIDE**
B117: - | C117: Equipment Costs | G117: =HLOOKUP('Flexible Land Rent'!$F$7,'Land Rent '!$D$9:$J$26,12,FALSE) -> 89.1459975 | I117: MAX | M117: **HIDE**
B118: - | C118: Storage Costs | G118: =HLOOKUP('Flexible Land Rent'!$F$7,'Land Rent '!$D$9:$J$26,13,FALSE) -> 0 | I118: MAX | M118: **HIDE**
B119: = | C119: Maximum Breakeven Land Rental | G119: =SUM(G114-G115-G116-G117-G118) -> 182.2933566 | I119: MAX | M119: **HIDE**
I120: MAX | M120: **HIDE**
B121: - | C121: Producer Profit | G121: =SUM(G119-G17) -> 88.29335657 | H121: /acre | I121: MAX | M121: **HIDE**
B122: = | C122: Cash Land Rental Payable | G122: =ROUND(SUM(G119-G121),0) -> 94 | H122: /acre | I122: MAX | M122: **HIDE**
A124: Note: This budget is only a guide and is not intended as an in-depth study of agricultural land values. Interpretation and use of this information is the responsibility of the user. If you need help with a budget, contact a Farm Management Specialist.

Sheet Further Considerations
A2: . . . . . . . . . . . . . . . . . . . . . . . . . . . . . . . . . . . . . . . . . . . . . . . . . . . . . . . . . . .
I3: Printed: | J3: =TODAY() -> 2023-12-11
A4: Crop Land Rental Rate - Further Analysis
A6: #1 - Land Rental Breakeven Calculations
B8: ="Maximum Land Rental Payable (with $"&'Land Rent '!G40&" to $"&'Land Rent '!I40&"/acre producer profit) is calculated at $"&'Land Rent '!G43&" to $"&'Land Rent '!I43&" per acre ("&ROUND('Chart Data (HIDE)'!F43,2)*100&" to "&ROUND('Chart Data (HIDE)'!G43,2)*100&"% of margin over operating costs or "&ROUND('Chart Data (HIDE)'!F30,2)*100&" to "&ROUND('Chart Data (HIDE)'!G30,2)*100&"% of gross revenue)." -> Maximum Land Rental Payable (with $15 to $30/acre producer profit) is calculated at $71 to $86 per acre (33 to 40% of margin over operating costs or 12 to 15% of gross revenue).
B11: ="Maximum Breakeven Land Rental (before profit) is calculated at $"&TEXT('Land Rent '!H37,"#.##")&" per acre ("&ROUND('Land Rent '!G72,2)*100&"% of margin over operating costs or "&ROUND('Land Rent '!G71,2)*100&"% share of gross revenue)." -> Maximum Breakeven Land Rental (before profit) is calculated at $101.15 per acre (47% of margin over operating costs or 17% share of gross revenue).
A14: #2 - Flexible Land Rental Breakeven Calculation
B16: ="Flexible Land Rental Breakeven (before profit) is calculated at "&ROUND('Flexible Land Rent'!O81,1)&" bu/acre "&'Flexible Land Rent'!F7&" or "&ROUND('Flexible Land Rent'!O82*100,1)&"% of the "&'Flexible Land Rent'!E9&" bu/acre probable yield." -> Flexible Land Rental Breakeven (before profit) is calculated at 60.8 bu/acre Wheat - Hard Red Spring or 101.4% of the 60 bu/acre probable yield.
A19: #3 - Estimated Land Value Calculation - Based on Land Rental Rate
C21: Land Rental Payment | G21: ='Land Rent '!G43 -> 71 | H21: /acre to | I21: ='Land Rent '!I43 -> 86 | J21: /acre
B22: - | C22: Property taxes (area average value) | H22: ='Land Rent '!H77 -> 0 | I22: /acre
B23: ÷ | C23: Investment Rate of Return | G23: ='Land Rent '!G76 -> 2.25 | H23: % to | I23: ='Land Rent '!I76 -> 2.75 | J23: %
B25: = | C25: Estimated Land Market Value | G25: ="$"&TEXT((G21-H22)/(I23/100),"#,###")&" to $"&TEXT((I21-H22)/(G23/100),"#,###")&"/acre (Avg. $"&TEXT((((G21-H22)/(I23/100))+((I21-H22)/(G23/100)))/2,"#,###")&"/acre) " -> $2,582 to $3,822/acre (Avg. $3,202/acre)
A27: Crop Land Rental Rate - Further Considerations
A29: #4 - Producer Discount (or Landowner Premium) for Early Land Rental Payment
C31: Operating interest rate | F31: 9 | G31: %
C33: 100% payment in spring | F33: =ROUND('Land Rent '!I43*('Further Considerations'!F31/100*(6/12)),1) -> 3.9 | G33: / acre
C34: 50% payment in spring | F34: =ROUND('Land Rent '!I43/2*('Further Considerations'!F31/100*(6/12)),1) -> 1.9 | G34: / acre
A36: #5 - Soil Test (Nutrient Bank) Level Comparison
H37: Land Rental Term
H38: Start | I38: End
C39: Nitrogen Soil Test Level (lbs./ac) | H39: 40 | I39: 20
C40: Phosphorus Soil Test Level (P2O5 lbs./ac) | H40: 35 | I40: 20
C41: Land Rental Term (Number of Years) | H41: 3
F43: Bulk Price | H43: Actual Nutrient
C44: Fertilizer Type | F44: $/tonne | H44: $/lb.
C45: Phosphorus: 11-52-0 | F45: 1075 | H45: =SUM((F45-(H46*(0.11*2204.5855)))/(2204.5855*0.52)) -> 0.7656396453
C46: Nitrogen: (urea) 46-0-0 | F46: 825 | H46: =SUM(F46/(2204.5855*0.46)) -> 0.8135217531
B48: = | C48: Change in Soil Nutrient Bank Account Balance | H48: =ROUND(SUM(I40-H40)*H45,1)+ROUND(SUM(I39-H39)*H46,1) -> -27.8 | I48: /acre
B49: = | C49: Change in Soil Nutrient Bank Account Balance | H49: =ROUND(H48/H41,1) -> -9.3 | I49: per acre each year
A51: #5 - Total Land Owner Return on Asset - Annual Land Value Appreciation (non-cash consideration)
C53: Land market value | G53: ='Land Rent '!H75 -> 4150 | H53: /acre
B54: x | C54: Avg. Annual Land Appreciation Rate | G54: 6.3 | H54: % | I54: (FCC Historical Land Values)
C55: Annual Land Appreciation (Non-Payable) | G55: =ROUND(SUM(G53*(G54/100)),0) -> 261 | H55: /acre
B56: + | C56: Cash Land Rental (Payable) | G56: =('Land Rent '!$G$43+'Land Rent '!$I$43)/2 -> 78.5 | H56: /acre
B57: = | C57: Total Landowner Return on Asset (ROA) | G57: =SUM(G55:G56) -> 339.5 | H57: /acre | I57: ="(or "&ROUND((G57/G53)*100,1)&"% ROA)" -> (or 8.2% ROA)
A59: #7 - Local Area Land Rental Rate Comparison
G60: Low Rent | I60: High Rent
A61: ???? HIDE????? | G61: Per Acre | I61: Per Acre
B62: = | C62: Your Local Area Land Rental Rate | G62: (enter $) | I62: (enter $)
C63: Land Rent Share (margin over operating) | G63: =IF(G62="(enter $)","-",SUM(G62/'Land Rent '!C25)*100) -> - | H63: % | I63: =IF(I62="(enter $)","-",SUM(I62/'Land Rent '!C25)*100) -> - | J63: %
C64: Land Rent Share (gross revenue) | G64: =IF(G62="(enter $)","-",SUM(G62/'Land Rent '!C22)*100) -> - | H64: % | I64: =IF(I62="(enter $)","-",SUM(I62/'Land Rent '!C22)*100) -> - | J64: %
C66: Gross revenue | H66: ='Land Rent '!C22 -> 587.35
B67: - | C67: Operating Costs | H67: ='Land Rent '!C18 -> 370.0560482
B68: - | C68: Labour /Owner Salary Costs | H68: ='Land Rent '!C19 -> 27
B69: - | C69: Equipment Costs | H69: ='Land Rent '!C20 -> 89.1459975
B70: - | C70: Storage Costs | H70: ='Land Rent '!#REF! -> 
B71: - | C71: Land Rental Rate Payable | G71: =G62 -> (enter $) | I71: =I62 -> (enter $)
B72: = | C72: Producer Profit Margin | G72: =IF(G62="(enter $)","-",ROUND(SUM(H66-H67-H68-H69-H70-G71),0)) -> - | I72: =IF(I62="(enter $)","-",ROUND(SUM(H66-H67-H68-H69-H70-I71),0)) -> -
C73: Producer Profit Share (margin over operating) | G73: =IF(G62="(enter $)","-",SUM(G72/'Land Rent '!C25)*100) -> - | H73: % | I73: =IF(I62="(enter $)","-",SUM(I72/'Land Rent '!C25)*100) -> - | J73: %
C74: Producer Profit Share (gross revenue) | G74: =IF(G62="(enter $)","-",SUM(G72/'Land Rent '!C22)*100) -> - | H74: % | I74: =IF(I62="(enter $)","-",SUM(I72/'Land Rent '!C22)*100) -> - | J74: %
C76: Producer Return on Investment (ROI) | G76: =IF(G62="(enter $)","-",SUM((H66-(H67+H68+H69+H70+G62))/(H67+H68+H69+H70+G62))*100) -> - | H76: % | I76: =IF(I62="(enter $)","-",SUM((H66-(H67+H68+H69+H70+I62))/(H67+H68+H69+H70+I62))*100) -> - | J76: %
C77: Landowner Return on Asset (ROA) | G77: =IF(G62="(enter $)","-",SUM((G62-'Land Rent '!H77)/('Land Rent '!H75*(1-('Land Rent '!#REF!/100))))*100) -> - | H77: % | I77: =IF(I62="(enter $)","-",SUM((I62-'Land Rent '!H77)/('Land Rent '!H75*(1-('Land Rent '!#REF!/100))))*100) -> - | J77: %
A79: Note: This budget is only a guide and is not intended as an in-depth study of agricultural land values. Interpretation and use of this information is the responsibility of the user. If you need help with a budget, contact a Farm Management Specialist.
K81: January, 2024

Sheet Production Costs
Z1: HIDE
A3: =IF(B30="Manitoba","Crop Production Costs "&Intro!J19&" Guidelines - Manitoba (Dollars Per Acre)","Crop Production Costs "&Intro!J19&" Guidelines - "&B30&" (Dollars Per Acre)") -> Crop Production Costs 2024 Guidelines - Manitoba (Dollars Per Acre)
C5: Wheat - Hard Red Spring | D5: Wheat - Northern Hard Red | E5: Wheat - Prairie Spring | F5: Wheat - Winter | G5: Oats | H5: Barley | I5: Hybrid Fall Rye | J5: Corn | M5: Canola | N5: Soybeans | O5: Sunflower | P5: Flaxseed | Q5: Peas | R5: Beans - Pinto | S5: Beans - White | T5: Beans - Black | U5: Other Crop | V5: Other Crop | Z5: REDO MACRO
A6: A. Operating Costs | Z6: 1 | AA6: =Z6+1 -> 2 | AB6: =AA6+1 -> 3 | AC6: 4 | AD6: 5 | AE6: 6 | AF6: 7 | AG6: 8 | AH6: 9 | AI6: 10 | AJ6: 11 | AK6: 12 | AL6: 13 | AM6: 14 | AN6: 15 | AO6: 16
B7: Seed & Treatment | C7: 36 | D7: 36 | E7: 36 | F7: 34 | G7: 25 | H7: 24 | I7: 82.4 | J7: 102 | L7: Seed & Treatment | M7: 80 | N7: 90 | O7: 50 | P7: 64 | Q7: 88 | R7: 116 | S7: 112 | T7: 118 | U7: 0 | V7: 0 | Z7: 36 | AA7: 36 | AB7: 36 | AC7: 34 | AD7: 25 | AE7: 24 | AF7: 82.4 | AG7: 102 | AI7: Seed & Treatment | AJ7: 80 | AK7: 90 | AL7: 50 | AM7: 64 | AN7: 88 | AO7: 116 | AP7: 112 | AQ7: 118
B8: Fertilizer | C8: 124.4367504 | D8: 136.2854995 | E8: 128.3863334 | F8: 124.4367504 | G8: 91.20748273 | H8: 93.08290595 | I8: 152.0838317 | J8: 176.9996939 | L8: Fertilizer | M8: 142.0968231 | N8: 42.23395371 | O8: 116.1356063 | P8: 62.4648688 | Q8: 28.13173853 | R8: 78.26320101 | S8: 86.16236711 | T8: 86.16236711 | U8: 0 | V8: 0 | Z8: 124.4367504 | AA8: 136.2854995 | AB8: 128.3863334 | AC8: 124.4367504 | AD8: 91.20748273 | AE8: 93.08290595 | AF8: 152.0838317 | AG8: 176.9996939 | AI8: Fertilizer | AJ8: 142.0968231 | AK8: 42.23395371 | AL8: 116.1356063 | AM8: 62.4648688 | AN8: 28.13173853 | AO8: 78.26320101 | AP8: 86.16236711 | AQ8: 86.16236711
B9: Crop Protection | C9: 61.81 | D9: 61.81 | E9: 61.81 | F9: 41.54 | G9: 23.13 | H9: 50.13 | I9: 8.38 | J9: 32 | L9: Crop Protection | M9: 66.76 | N9: 23.58 | O9: 47.52 | P9: 32.26 | Q9: 46 | R9: 129.78 | S9: 129.78 | T9: 129.78 | U9: 0 | V9: 0 | Z9: 61.81 | AA9: 61.81 | AB9: 61.81 | AC9: 41.54 | AD9: 23.13 | AE9: 50.13 | AF9: 8.38 | AG9: 32 | AI9: Crop Protection | AJ9: 66.76 | AK9: 23.58 | AL9: 47.52 | AM9: 32.26 | AN9: 46 | AO9: 129.78 | AP9: 129.78 | AQ9: 129.78
B10: Fuel | C10: 38.14336253 | D10: 38.82669811 | E10: 38.28002964 | F10: 38.14336253 | G10: 44.97671832 | H10: 41.74003503 | I10: 38.79336926 | J10: 46.59006063 | L10: Fuel | M10: 37.93002021 | N10: 33.0533504 | O10: 39.07336926 | P10: 36.31667789 | Q10: 33.15335579 | R10: 32.607792 | S10: 32.15223495 | T10: 32.15223495 | U10: 0 | V10: 0 | Z10: 38.14336253 | AA10: 38.82669811 | AB10: 38.28002964 | AC10: 38.14336253 | AD10: 44.97671832 | AE10: 41.74003503 | AF10: 38.79336926 | AG10: 46.59006063 | AI10: Fuel | AJ10: 37.93002021 | AK10: 33.0533504 | AL10: 39.07336926 | AM10: 36.31667789 | AN10: 33.15335579 | AO10: 32.607792 | AP10: 32.15223495 | AQ10: 32.15223495
B11: Machinery Operating & Lease | C11: 25 | D11: 25 | E11: 25 | F11: 25 | G11: 25 | H11: 25 | I11: 25 | J11: 25 | L11: Machinery Operating & Lease | M11: 25 | N11: 25 | O11: 38 | P11: 25 | Q11: 25 | R11: 50 | S11: 50 | T11: 50 | U11: 0 | V11: 0 | Z11: 25 | AA11: 25 | AB11: 25 | AC11: 25 | AD11: 25 | AE11: 25 | AF11: 25 | AG11: 25 | AI11: Machinery Operating & Lease | AJ11: 25 | AK11: 25 | AL11: 38 | AM11: 25 | AN11: 25 | AO11: 50 | AP11: 50 | AQ11: 50
B12: Labour - Hired | C12: 5.4 | D12: 5.4 | E12: 5.4 | F12: 5.4 | G12: 5.4 | H12: 5.4 | I12: 5.4 | J12: 5.4 | L12: Labour - Hired | M12: 5.4 | N12: 5.4 | O12: 5.4 | P12: 5.4 | Q12: 5.4 | R12: 5.4 | S12: 5.4 | T12: 5.4 | U12: 0 | V12: 0 | Z12: 5.4 | AA12: 5.4 | AB12: 5.4 | AC12: 5.4 | AD12: 5.4 | AE12: 5.4 | AF12: 5.4 | AG12: 5.4 | AI12: Labour - Hired | AJ12: 5.4 | AK12: 5.4 | AL12: 5.4 | AM12: 5.4 | AN12: 5.4 | AO12: 5.4 | AP12: 5.4 | AQ12: 5.4
B13: Crop Insurance | C13: 13.5175 | D13: 16.4075 | E13: 12.445 | F13: 13.9775 | G13: 21.015 | H13: 18.955 | I13: 18.4975 | J13: 50.695 | L13: Crop Insurance | M13: 17.495 | N13: 25.945 | O13: 27.3475 | P13: 21.695 | Q13: 19.6575 | R13: 39.0075 | S13: 40.815 | T13: 46.855 | U13: 0 | V13: 0 | Z13: 13.5175 | AA13: 16.4075 | AB13: 12.445 | AC13: 13.9775 | AD13: 21.015 | AE13: 18.955 | AF13: 18.4975 | AG13: 50.695 | AI13: Crop Insurance | AJ13: 17.495 | AK13: 25.945 | AL13: 27.3475 | AM13: 21.695 | AN13: 19.6575 | AO13: 39.0075 | AP13: 40.815 | AQ13: 46.855
B14: Hail Insurance | C14: 11.8 | D14: 11.8 | E14: 11.8 | F14: 11.8 | G14: 11.8 | H14: 11.8 | I14: 11.8 | J14: 11.8 | L14: Hail Insurance | M14: 11.8 | N14: 15.34 | O14: 11.8 | P14: 11.8 | Q14: 23.6 | R14: 20.65 | S14: 20.65 | T14: 20.65 | U14: 0 | V14: 0 | Z14: 11.8 | AA14: 11.8 | AB14: 11.8 | AC14: 11.8 | AD14: 11.8 | AE14: 11.8 | AF14: 11.8 | AG14: 11.8 | AI14: Hail Insurance | AJ14: 11.8 | AK14: 15.34 | AL14: 11.8 | AM14: 11.8 | AN14: 23.6 | AO14: 20.65 | AP14: 20.65 | AQ14: 20.65
B15: Drying & Other Costs | C15: 17.75 | D15: 17.75 | E15: 17.75 | F15: 17.75 | G15: 17.75 | H15: 17.75 | I15: 17.75 | J15: 87.75 | L15: Drying & Other Costs | M15: 17.75 | N15: 17.75 | O15: 27.75 | P15: 17.75 | Q15: 17.75 | R15: 17.75 | S15: 17.75 | T15: 17.75 | U15: 0 | V15: 0 | Z15: 17.75 | AA15: 17.75 | AB15: 17.75 | AC15: 17.75 | AD15: 17.75 | AE15: 17.75 | AF15: 17.75 | AG15: 87.75 | AI15: Drying & Other Costs | AJ15: 17.75 | AK15: 17.75 | AL15: 27.75 | AM15: 17.75 | AN15: 17.75 | AO15: 17.75 | AP15: 17.75 | AQ15: 17.75
B16: Storage Costs | C16: 17.87506265 | D16: 19.25006747 | E16: 18.15006361 | F16: 17.87506265 | G16: 31.62511084 | H16: 21.45007518 | I16: 22.00007711 | J16: 37.12513012 | L16: Storage Costs | M16: 12.37504337 | N16: 10.45003663 | O16: 22.00007711 | P16: 6.875024096 | Q16: 13.75004819 | R16: 8.708363854 | S16: 7.791693975 | T16: 7.791693975 | U16: 0 | V16: 0 | Z16: 17.87506265 | AA16: 19.25006747 | AB16: 18.15006361 | AC16: 17.87506265 | AD16: 31.62511084 | AE16: 21.45007518 | AF16: 22.00007711 | AG16: 37.12513012 | AI16: Storage Costs | AJ16: 12.37504337 | AK16: 10.45003663 | AL16: 22.00007711 | AM16: 6.875024096 | AN16: 13.75004819 | AO16: 8.708363854 | AP16: 7.791693975 | AQ16: 7.791693975
B17: Interest on Operating | C17: =(SUM(C7:C16)/2)*('Further Considerations'!$F$31/100) -> 15.8279704 | D17: =(SUM(D7:D16)/2)*('Further Considerations'!$F$31/100) -> 16.58383943 | E17: =(SUM(E7:E16)/2)*('Further Considerations'!$F$31/100) -> 15.9759642 | F17: =(SUM(F7:F16)/2)*('Further Considerations'!$F$31/100) -> 14.8465204 | G17: =(SUM(G7:G16)/2)*('Further Considerations'!$F$31/100) -> 13.36069403 | H17: =(SUM(H7:H16)/2)*('Further Considerations'!$F$31/100) -> 13.91886073 | I17: =(SUM(I7:I16)/2)*('Further Considerations'!$F$31/100) -> 17.19471501 | J17: =(SUM(J7:J16)/2)*('Further Considerations'!$F$31/100) -> 25.89119481 | M17: =(SUM(M7:M16)/2)*('Further Considerations'!$F$31/100) -> 18.7473099 | N17: =(SUM(N7:N16)/2)*('Further Considerations'!$F$31/100) -> 12.99385533 | O17: =(SUM(O7:O16)/2)*('Further Considerations'!$F$31/100) -> 17.32619487 | P17: =(SUM(P7:P16)/2)*('Further Considerations'!$F$31/100) -> 12.76027069 | Q17: =(SUM(Q7:Q16)/2)*('Further Considerations'!$F$31/100) -> 13.51991891 | R17: =(SUM(R7:R16)/2)*('Further Considerations'!$F$31/100) -> 22.41750856 | S17: =(SUM(S7:S16)/2)*('Further Considerations'!$F$31/100) -> 22.61255832 | T17: =(SUM(T7:T16)/2)*('Further Considerations'!$F$31/100) -> 23.15435832 | U17: =(SUM(U7:U16)/2)*('Further Considerations'!$F$31/100) -> 0 | V17: =(SUM(V7:V16)/2)*('Further Considerations'!$F$31/100) -> 0
B18: Total Operating | C18: =SUM(C7:C17) -> 367.5606459 | D18: 385.1136045 | E18: 370.9973909 | F18: 344.7691959 | G18: 310.2650059 | H18: 323.2268769 | I18: 399.2994931 | J18: 601.2510794 | M18: =SUM(M7:M17) -> 435.3541965 | N18: 301.7461961 | O18: =SUM(O7:O17) -> 402.3527476 | P18: =SUM(P7:P17) -> 296.3218415 | Q18: 313.9625614 | R18: 520.5843654 | S18: 525.1138544 | T18: 537.6956544 | U18: 0 | V18: 0
A20: B. Fixed Costs
B21: Machinery Costs | C21: 89.1459975 | D21: 89.1459975 | E21: 89.1459975 | F21: 89.1459975 | G21: 89.1459975 | H21: 89.1459975 | I21: 89.1459975 | J21: 109.0324123 | L21: Machinery Costs | M21: 89.1459975 | N21: 89.1459975 | O21: 109.0324123 | P21: 89.1459975 | Q21: 89.1459975 | R21: 109.0324123 | S21: 109.0324123 | T21: 109.0324123 | U21: =IF(U5="Other Crop",0,$C$21) -> 0 | V21: =IF(V5="Other Crop",0,$C$21) -> 0 | Z21: 89.15
A23: C. Owners Labour & Living Costs | C23: 27 | D23: =$C$23 -> 27 | E23: 27 | F23: 27 | G23: 27 | H23: 27 | I23: 27 | J23: 27 | M23: =$C$23 -> 27 | N23: 27 | O23: 27 | P23: 27 | Q23: 27 | R23: 27 | S23: 27 | T23: 27 | U23: =IF(U5="Other Crop",0,$C$23) -> 0 | V23: =IF(V5="Other Crop",0,$C$23) -> 0 | Z23: 27
A25: Total Costs | C25: =SUM(C23+C21+C18) -> 483.7066434 | D25: 501.259602 | E25: 487.1433884 | F25: 460.9151934 | G25: 426.4110034 | H25: 439.3728744 | I25: 515.4454906 | J25: 737.2834918 | M25: =SUM(C23+C21+M18) -> 551.5001941 | N25: =SUM(N23+N21+N18) -> 417.8921936 | O25: =SUM(O23+O21+O18) -> 538.3851599 | P25: =SUM(P23+P21+P18) -> 412.467839 | Q25: 430.1085589 | R25: 656.6167778 | S25: 661.1462667 | T25: 673.7280667 | U25: 0 | V25: 0
A29: ****HIDE*****
B30: Manitoba | C30: Manitoba | D30: Risk Area #4 | E30: Risk Area #32 | F30: Risk Area #15 | G30: Risk Area #3 | H30: Risk Area #2 | I30: Risk Area #7 | J30: Risk Area #5 | N30: Risk Area #1 | O30: Risk Area #12 | P30: Risk Area #11 | Q30: Risk Area #6 | R30: Risk Area #9 | S30: Risk Area #10
A32: A. Operating Costs
B33: Seed & Treatment | C33: 29 | D33: 50.49 | E33: 40 | F33: 25.2 | G33: 19.38 | H33: 18 | I33: 82.5 | J33: 96 | M33: 67.5 | N33: 93.38 | O33: 49.5 | P33: 27 | Q33: 27 | R33: 12 | S33: 78.1 | T33: 83.75 | U33: 0 | V33: 0
B34: Fertilizer | C34: 76.89746343 | D34: 18.8183321 | E34: 72.57835084 | F34: 38.44074134 | G34: 57.42173308 | H34: 62.53380236 | I34: 47.74122506 | J34: 112.2140921 | M34: 88.15902762 | N34: 23.88150944 | O34: 72.57835084 | P34: 83.87282622 | Q34: 83.87282622 | R34: 93.17330994 | S34: 52.39146693 | T34: 52.39146693 | U34: 0 | V34: 0
B35: Pesticide | C35: 47.23 | D35: 34.25 | E35: 28.59 | F35: 35.13 | G35: 19.63 | H35: 51.5 | I35: 96.23 | J35: 27.45 | M35: 30.91 | N35: 10.47 | O35: 72.32 | P35: 47.23 | Q35: 47.23 | R35: 7.5 | S35: 100.39 | T35: 96.23 | U35: 0 | V35: 0
B36: Fuel | C36: 21.63656425 | D36: 17.92691731 | E36: 21.35930535 | F36: 19.66941158 | G36: 25.78741095 | H36: 23.29811705 | I36: 17.502588 | J36: 26.58682253 | M36: 20.81894084 | N36: 18.71012914 | O36: 21.02739949 | P36: 22.38335242 | Q36: 22.38335242 | R36: 18.80728181 | S36: 17.29514684 | T36: 17.22599979 | U36: 0 | V36: 0
B37: Machinery Operating & Lease | C37: 12.88 | D37: 12.88 | E37: 21.38 | F37: 12.88 | G37: 12.88 | H37: 12.88 | I37: 12.88 | J37: 12.88 | M37: 12.88 | N37: 12.88 | O37: 29.88 | P37: 12.88 | Q37: 12.88 | R37: 12.88 | S37: 12.88 | T37: 12.88 | U37: 0 | V37: 0
B38: Labour - Hired | C38: 4.8 | D38: 4.8 | E38: 4.8 | F38: 4.8 | G38: 4.8 | H38: 4.8 | I38: 4.8 | J38: 4.8 | M38: 4.8 | N38: 4.8 | O38: 4.8 | P38: 4.8 | Q38: 4.8 | R38: 4.8 | S38: 4.8 | T38: 4.8 | U38: 0 | V38: 0
B39: Crop Insurance | C39: 6.635 | D39: 8.4675 | E39: 13.86 | F39: 10.32 | G39: 11.115 | H39: 8.2975 | I39: 22.655 | J39: 21.2875 | M39: 7.7725 | N39: 12.1575 | O39: 26.27 | P39: 6.6575 | Q39: 8.7825 | R39: 11.675 | S39: 19.3825 | T39: 26.73 | U39: 0 | V39: 0
B40: Hail Insurance | C40: 6.35 | D40: 12.7 | E40: 6.35 | F40: 6.35 | G40: 6.35 | H40: 6.35 | I40: 11.1125 | J40: 6.35 | M40: 6.35 | N40: 8.255 | O40: 6.35 | P40: 6.35 | Q40: 6.35 | R40: 6.35 | S40: 11.1125 | T40: 11.1125 | U40: 0 | V40: 0
B41: Drying & Other Costs | C41: 7.75 | D41: 7.75 | E41: 17.75 | F41: 7.75 | G41: 7.75 | H41: 7.75 | I41: 7.75 | J41: 42.75 | M41: 7.75 | N41: 7.75 | O41: 17.75 | P41: 7.75 | Q41: 7.75 | R41: 7.75 | S41: 7.75 | T41: 7.75 | U41: 0 | V41: 0
B42: Storage Costs | C42: 6.92797933 | D42: 5.224377855 | E42: 8.177287078 | F42: 2.839335791 | G42: 12.49307748 | H42: 9.085874531 | I42: 3.596492002 | J42: 15.33241327 | M42: 5.110804423 | N42: 4.20221697 | O42: 7.722993351 | P42: 7.950140214 | Q42: 7.950140214 | R42: 8.290860509 | S42: 3.312558423 | T42: 3.217913896 | U42: 0 | V42: 0
B43: Interest on Operating | C43: =C17 -> 15.8279704 | D43: 16.58383943 | E43: 15.9759642 | F43: 14.8465204 | G43: 13.36069403 | H43: 13.91886073 | I43: 17.19471501 | J43: 25.89119481 | M43: =M17 -> 18.7473099 | N43: =N17 -> 12.99385533 | O43: =O17 -> 17.32619487 | P43: =P17 -> 12.76027069 | Q43: 13.51991891 | R43: 22.41750856 | S43: 22.61255832 | T43: 23.15435832 | U43: 0 | V43: 0
B44: Total Operating | C44: =SUM(C33:C43) -> 235.9349774 | D44: 189.8909667 | E44: 250.8209075 | F44: 178.2260091 | G44: 190.9679155 | H44: 218.4141547 | I44: 323.9625201 | J44: 391.5420227 | M44: =SUM(M33:M43) -> 270.7985828 | N44: 209.4802109 | O44: =SUM(O33:O43) -> 325.5249386 | P44: =SUM(P33:P43) -> 239.6340895 | Q44: 242.5187378 | R44: 205.6439608 | S44: 330.0267305 | T44: 339.2422389 | U44: 0 | V44: 0
A46: B. Fixed Costs
B47: Machinery Costs | C47: =$C$21 -> 89.1459975 | D47: 89.1459975 | E47: 89.1459975 | F47: 89.1459975 | G47: 89.1459975 | H47: 89.1459975 | I47: 89.1459975 | J47: 89.1459975 | M47: 67.31 | N47: =$C$21 -> 89.1459975 | O47: 89.1459975 | P47: 89.1459975 | Q47: 89.1459975 | R47: 89.1459975 | S47: 89.1459975 | T47: 89.1459975 | U47: =IF(U28="Other Crop",0,$C$21) -> 89.1459975 | V47: =IF(V28="Other Crop",0,$C$21) -> 89.1459975
A49: C. Owners Labour & Living Costs | C49: =$C$23 -> 27 | D49: 27 | E49: 27 | F49: 27 | G49: 27 | H49: 27 | I49: 27 | J49: 27 | M49: 24 | N49: =$C$23 -> 27 | O49: 27 | P49: 27 | Q49: 27 | R49: 27 | S49: 27 | T49: 27 | U49: =IF(U29="Other Crop",0,$C$23) -> 27 | V49: =IF(V29="Other Crop",0,$C$23) -> 27
A51: Total Costs | C51: =SUM(C49+C47+C44) -> 352.0809749 | D51: 306.0369642 | E51: 366.966905 | F51: 294.3720066 | G51: 307.113913 | H51: 334.5601522 | I51: 440.1085176 | J51: 507.6880202 | M51: =SUM(M49+M47+M44) -> 362.1085828 | N51: =SUM(N49+N47+N44) -> 325.6262084 | O51: =SUM(O49+O47+O44) -> 441.6709361 | P51: =SUM(P49+P47+P44) -> 355.780087 | Q51: 358.6647353 | R51: 321.7899583 | S51: 446.172728 | T51: 455.3882364 | U51: 116.1459975 | V51: 116.1459975

Sheet Staff Cheat Sheet (HIDE) (hidden)
A2: ="$"&ROUND((((A3*C3)+(C4*A4)+(A5*C5))/3),0)&" Gross Revenue" -> $297 Gross Revenue | E2: ="$"&ROUND((((E3*G3)+(G4*E4)+(E5*G5))/3),0)&" Gross Revenue" -> $350 Gross Revenue | I2: ="$"&ROUND((((I3*K3)+(K4*I4)+(I5*K5))/3),0)&" Gross Revenue" -> $398 Gross Revenue
A3: 30 | B3: canola | C3: ='Data (HIDE)'!$B$50 -> 9.25 | E3: 35 | F3: canola | G3: ='Data (HIDE)'!$B$50 -> 9.25 | I3: 40 | J3: canola | K3: ='Data (HIDE)'!$B$50 -> 9.25
A4: 30 | B4: soybeans | C4: ='Data (HIDE)'!$B$51 -> 8.75 | E4: 35 | F4: soybeans | G4: ='Data (HIDE)'!$B$51 -> 8.75 | I4: 39 | J4: soybeans | K4: ='Data (HIDE)'!$B$51 -> 8.75
A5: 40 | B5: rs wheat | C5: ='Data (HIDE)'!$B$52 -> 8.75 | E5: 48 | F5: rs wheat | G5: ='Data (HIDE)'!$B$52 -> 8.75 | I5: 55 | J5: rs wheat | K5: ='Data (HIDE)'!$B$52 -> 8.75
A6: Gross Revenue Share | E6: Gross Revenue Share | I6: Gross Revenue Share
B7: Avg. | F7: Avg. | J7: Avg.
A8: 0.15 | B8: =AVERAGE(A8,C8) -> 0.17 | C8: 0.19 | E8: =$A$8 -> 0.15 | F8: =AVERAGE(E8,G8) -> 0.17 | G8: =$C$8 -> 0.19 | I8: =$A$8 -> 0.15 | J8: =AVERAGE(I8,K8) -> 0.17 | K8: =$C$8 -> 0.19
A9: Fair Mkt Land Rent | E9: Fair Mkt Land Rent | I9: Fair Mkt Land Rent
A10: =ROUND(((((A3*C3)+(C4*A4)+(A5*C5))/3)*A8),0) -> 45 | B10: =ROUND(((((A3*C3)+(C4*A4)+(A5*C5))/3)*B8),0) -> 50 | C10: =ROUND(((((A3*C3)+(C4*A4)+(A5*C5))/3)*C8),0) -> 56 | E10: =ROUND(((((E3*G3)+(G4*E4)+(E5*G5))/3)*E8),0) -> 53 | F10: =ROUND(((((E3*G3)+(G4*E4)+(E5*G5))/3)*F8),0) -> 60 | G10: =ROUND(((((E3*G3)+(G4*E4)+(E5*G5))/3)*G8),0) -> 67 | I10: =ROUND(((((I3*K3)+(K4*I4)+(I5*K5))/3)*I8),0) -> 60 | J10: =ROUND(((((I3*K3)+(K4*I4)+(I5*K5))/3)*J8),0) -> 68 | K10: =ROUND(((((I3*K3)+(K4*I4)+(I5*K5))/3)*K8),0) -> 76
A11: Investment Rate of Return | E11: Investment Rate of Return | I11: Investment Rate of Return
B12: Avg. | F12: Avg. | J12: Avg.
A13: ='Land Rent '!$G$76/100 -> 0.0225 | B13: =AVERAGE($A$13,$C$13) -> 0.025 | C13: ='Land Rent '!$I$76/100 -> 0.0275 | E13: ='Land Rent '!$G$76/100 -> 0.0225 | F13: =AVERAGE($A$13,$C$13) -> 0.025 | G13: ='Land Rent '!$I$76/100 -> 0.0275 | I13: ='Land Rent '!$G$76/100 -> 0.0225 | J13: =AVERAGE($A$13,$C$13) -> 0.025 | K13: ='Land Rent '!$I$76/100 -> 0.0275
A14: ='Land Rent '!$H$77 -> 0 | B14: Taxes | E14: ='Land Rent '!$H$77 -> 0 | F14: Taxes | I14: ='Land Rent '!$H$77 -> 0 | J14: Taxes
A15: Land Value | E15: Land Value | I15: Land Value
A16: =SUM(A10-A14)/B13 -> 1800 | B16: =AVERAGE(A16,C16) -> 2020 | C16: =SUM(C10-A14)/B13 -> 2240 | E16: =SUM(E10-E14)/F13 -> 2120 | F16: =AVERAGE(E16,G16) -> 2400 | G16: =SUM(G10-E14)/F13 -> 2680 | I16: =SUM(I10-I14)/J13 -> 2400 | J16: =AVERAGE(I16,K16) -> 2720 | K16: =SUM(K10-I14)/J13 -> 3040
A17: Land Value | E17: Land Value | I17: Land Value
A18: x5 | B18: =SUM(ROUND((((A3*C3)+(C4*A4)+(A5*C5))/3),0)*5) -> 1485 | E18: x5 | F18: =SUM(ROUND((((E3*G3)+(G4*E4)+(E5*G5))/3),0)*5) -> 1750 | I18: x5 | J18: =SUM(ROUND((((I3*K3)+(K4*I4)+(I5*K5))/3),0)*5) -> 1990
A19: x6 | B19: =SUM(ROUND((((A3*C3)+(C4*A4)+(A5*C5))/3),0)*6) -> 1782 | E19: x6 | F19: =SUM(ROUND((((E3*G3)+(G4*E4)+(E5*G5))/3),0)*6) -> 2100 | I19: x6 | J19: =SUM(ROUND((((I3*K3)+(K4*I4)+(I5*K5))/3),0)*6) -> 2388
A20: x8 | B20: =SUM(ROUND((((A3*C3)+(C4*A4)+(A5*C5))/3),0)*8) -> 2376 | E20: x8 | F20: =SUM(ROUND((((E3*G3)+(G4*E4)+(E5*G5))/3),0)*8) -> 2800 | I20: x8 | J20: =SUM(ROUND((((I3*K3)+(K4*I4)+(I5*K5))/3),0)*8) -> 3184
A21: x10 | B21: =SUM(ROUND((((A3*C3)+(C4*A4)+(A5*C5))/3),0)*10) -> 2970 | E21: x10 | F21: =SUM(ROUND((((E3*G3)+(G4*E4)+(E5*G5))/3),0)*10) -> 3500 | I21: x10 | J21: =SUM(ROUND((((I3*K3)+(K4*I4)+(I5*K5))/3),0)*10) -> 3980
A24: ="$"&ROUND((((A25*C25)+(C26*A26)+(A27*C27))/3),0)&" Gross Revenue" -> $448 Gross Revenue | E24: ="$"&ROUND((((E25*G25)+(G26*E26)+(E27*G27))/3),0)&" Gross Revenue" -> $502 Gross Revenue | I24: ="$"&ROUND((((I25*K25)+(K26*I26)+(I27*K27))/3),0)&" Gross Revenue" -> $534 Gross Revenue
A25: 45 | B25: canola | C25: ='Data (HIDE)'!$B$50 -> 9.25 | E25: 52 | F25: canola | G25: ='Data (HIDE)'!$B$50 -> 9.25 | I25: 55 | J25: canola | K25: ='Data (HIDE)'!$B$50 -> 9.25
A26: 44 | B26: soybeans | C26: ='Data (HIDE)'!$B$51 -> 8.75 | E26: 46 | F26: soybeans | G26: ='Data (HIDE)'!$B$51 -> 8.75 | I26: 50 | J26: soybeans | K26: ='Data (HIDE)'!$B$51 -> 8.75
A27: 62 | B27: rs wheat | C27: ='Data (HIDE)'!$B$52 -> 8.75 | E27: 71 | F27: rs wheat | G27: ='Data (HIDE)'!$B$52 -> 8.75 | I27: 75 | J27: rs wheat | K27: ='Data (HIDE)'!$B$52 -> 8.75
A28: Gross Revenue Share | E28: Gross Revenue Share | I28: Gross Revenue Share
B29: Avg. | F29: Avg. | J29: Avg.
A30: =$A$8 -> 0.15 | B30: =AVERAGE(A30,C30) -> 0.17 | C30: =$C$8 -> 0.19 | E30: =$A$8 -> 0.15 | F30: =AVERAGE(E30,G30) -> 0.17 | G30: =$C$8 -> 0.19 | I30: =$A$8 -> 0.15 | J30: =AVERAGE(I30,K30) -> 0.17 | K30: =$C$8 -> 0.19
A31: Fair Mkt Land Rent | E31: Fair Mkt Land Rent | I31: Fair Mkt Land Rent
A32: =ROUND(((((A25*C25)+(C26*A26)+(A27*C27))/3)*A30),0) -> 67 | B32: =ROUND(((((A25*C25)+(C26*A26)+(A27*C27))/3)*B30),0) -> 76 | C32: =ROUND(((((A25*C25)+(C26*A26)+(A27*C27))/3)*C30),0) -> 85 | E32: =ROUND(((((E25*G25)+(G26*E26)+(E27*G27))/3)*E30),0) -> 75 | F32: =ROUND(((((E25*G25)+(G26*E26)+(E27*G27))/3)*F30),0) -> 85 | G32: =ROUND(((((E25*G25)+(G26*E26)+(E27*G27))/3)*G30),0) -> 95 | I32: =ROUND(((((I25*K25)+(K26*I26)+(I27*K27))/3)*I30),0) -> 80 | J32: =ROUND(((((I25*K25)+(K26*I26)+(I27*K27))/3)*J30),0) -> 91 | K32: =ROUND(((((I25*K25)+(K26*I26)+(I27*K27))/3)*K30),0) -> 101
A33: Investment Rate of Return | E33: Investment Rate of Return | I33: Investment Rate of Return
B34: Avg. | F34: Avg. | J34: Avg.
A35: ='Land Rent '!$G$76/100 -> 0.0225 | B35: =AVERAGE($A$13,$C$13) -> 0.025 | C35: ='Land Rent '!$I$76/100 -> 0.0275 | E35: ='Land Rent '!$G$76/100 -> 0.0225 | F35: =AVERAGE($A$13,$C$13) -> 0.025 | G35: ='Land Rent '!$I$76/100 -> 0.0275 | I35: ='Land Rent '!$G$76/100 -> 0.0225 | J35: =AVERAGE($A$13,$C$13) -> 0.025 | K35: ='Land Rent '!$I$76/100 -> 0.0275
A36: ='Land Rent '!$H$77 -> 0 | B36: Taxes | E36: ='Land Rent '!$H$77 -> 0 | F36: Taxes | I36: ='Land Rent '!$H$77 -> 0 | J36: Taxes
A37: Land Value | E37: Land Value | I37: Land Value
A38: =SUM(A32-A36)/B35 -> 2680 | B38: =AVERAGE(A38,C38) -> 3040 | C38: =SUM(C32-A36)/B35 -> 3400 | E38: =SUM(E32-E36)/F35 -> 3000 | F38: =AVERAGE(E38,G38) -> 3400 | G38: =SUM(G32-E36)/F35 -> 3800 | I38: =SUM(I32-I36)/J35 -> 3200 | J38: =AVERAGE(I38,K38) -> 3620 | K38: =SUM(K32-I36)/J35 -> 4040
A39: Land Value | E39: Land Value | I39: Land Value
A40: x5 | B40: =SUM(ROUND((((A25*C25)+(C26*A26)+(A27*C27))/3),0)*5) -> 2240 | E40: x5 | F40: =SUM(ROUND((((E25*G25)+(G26*E26)+(E27*G27))/3),0)*5) -> 2510 | I40: x5 | J40: =SUM(ROUND((((I25*K25)+(K26*I26)+(I27*K27))/3),0)*5) -> 2670
A41: x6 | B41: =SUM(ROUND((((A25*C25)+(C26*A26)+(A27*C27))/3),0)*6) -> 2688 | E41: x6 | F41: =SUM(ROUND((((E25*G25)+(G26*E26)+(E27*G27))/3),0)*6) -> 3012 | I41: x6 | J41: =SUM(ROUND((((I25*K25)+(K26*I26)+(I27*K27))/3),0)*6) -> 3204
A42: x8 | B42: =SUM(ROUND((((A25*C25)+(C26*A26)+(A27*C27))/3),0)*8) -> 3584 | E42: x8 | F42: =SUM(ROUND((((E25*G25)+(G26*E26)+(E27*G27))/3),0)*8) -> 4016 | I42: x8 | J42: =SUM(ROUND((((I25*K25)+(K26*I26)+(I27*K27))/3),0)*8) -> 4272
A43: x10 | B43: =SUM(ROUND((((A25*C25)+(C26*A26)+(A27*C27))/3),0)*10) -> 4480 | E43: x10 | F43: =SUM(ROUND((((E25*G25)+(G26*E26)+(E27*G27))/3),0)*10) -> 5020 | I43: x10 | J43: =SUM(ROUND((((I25*K25)+(K26*I26)+(I27*K27))/3),0)*10) -> 5340

Sheet Data (HIDE) (hidden)
N1: MPP
A2: 2023 MASC DATA | B2: RENTPLAN | I2: 2023 | J2: 2024 | K2: Manitoba MPP | N2: 2,5,6,12
A3: Expected Yield/Acre 'D' | B3: Manitoba | C3: Risk Area #2 | D3: Risk Area #5 | E3: Risk Area #6 | F3: Risk Area #12 | G3: Avg. | I3: COP Yields | J3: COP Yields | K3: 2018-22 5 year | L3: 2013-22 10 year | M3: Median 5&10 | N3: 2018-22 5 year | P3: 0.9 | Q3: 0.95
A4: Wheat - Hard Red Spring | B4: 60 | C4: 61.4 | D4: 67.5 | E4: 60.9 | F4: 69.6 | G4: =AVERAGE(C4:F4) -> 64.85 | I4: 64 | J4: 65 | K4: 59.7 | L4: 58 | M4: =AVERAGE(K4:L4) -> 58.85 | N4: 61.4 | P4: =ROUND(J4*$P$3,0) -> 59 | Q4: =ROUND(J4*$Q$3,0) -> 62
A5: Wheat - Northern Hard Red | B5: 67 | C5: 67.4 | D5: 74.1 | E5: 66.9 | F5: 74.7 | G5: =AVERAGE(C5:F5) -> 70.775 | I5: 70 | J5: 70 | K5: 67.3 | L5: 69.3 | M5: =AVERAGE(K5:L5) -> 68.3 | N5: 69.2 | P5: 63 | Q5: 67
A6: Wheat - Prairie Spring | B6: 65 | C6: 62.2 | D6: 68.6 | E6: 61.8 | F6: 69.1 | G6: 65.425 | I6: 70 | J6: 66 | K6: 65 | L6: 66.5 | M6: 65.75 | N6: 66.9 | P6: 59 | Q6: 63
A7: Wheat - Winter | B7: 60 | C7: 61.1 | D7: 67.3 | E7: 60.7 | F7: 69.3 | G7: 64.6 | I7: 66 | J7: 65 | K7: 55.8 | L7: 62.5 | M7: 59.15 | N7: 61.4 | P7: 59 | Q7: 62
A8: Oats | B8: 105 | C8: 115.1 | D8: 126.2 | E8: 97.6 | F8: 134.9 | G8: 118.45 | I8: 120 | J8: 115 | K8: 102.7 | L8: 105 | M8: 103.85 | N8: 110.9 | P8: 104 | Q8: 109
A9: Barley | B9: 74 | C9: 75.8 | D9: 82.9 | E9: 71.5 | F9: 79.1 | G9: 77.325 | I9: 78 | J9: 78 | K9: 73.2 | L9: 74 | M9: 73.6 | N9: 78.2 | P9: 70 | Q9: 74
A10: Hybrid Fall Rye | B10: 71 | C10: 79.5 | D10: 79.5 | E10: 79.5 | F10: 79.5 | G10: 79.5 | I10: 80 | J10: 80 | K10: 70.7 | L10: 70.7 | M10: 70.7 | N10: 81.4 | P10: 72 | Q10: 76
A11: Corn | B11: 130 | C11: 119.4 | D11: 135.8 | E11: 105.4 | F11: 156.4 | G11: 129.25 | I11: 135 | J11: 135 | K11: 124.2 | L11: 128.5 | M11: 126.35 | N11: 135.2 | P11: 122 | Q11: 128
A12: Canola | B12: 42 | C12: 43.3 | D12: 48.1 | E12: 43.2 | F12: 48.8 | G12: 45.85 | I12: 44 | J12: 45 | K12: 40.4 | L12: 41 | M12: 40.7 | N12: 41.7 | P12: 41 | Q12: 43
A13: Soybeans | B13: 35 | C13: 36.6 | D13: 37.8 | E13: 36.6 | F13: 39 | G13: 37.5 | I13: 36 | J13: 38 | K13: 32.7 | L13: 35.1 | M13: 33.9 | N13: 35.2 | P13: 34 | Q13: 36
A14: Sunflower | B14: 1900 | C14: 2024 | D14: 2024 | E14: 2024 | F14: 2024 | G14: 2024 | I14: 2000 | J14: 2000 | K14: 2000 | L14: 1914 | M14: 1957 | N14: 1983 | P14: 1800 | Q14: 1900
A15: Flaxseed | B15: 24 | C15: 22 | D15: 27.1 | E15: 22.1 | F15: 26.3 | G15: 24.375 | I15: 25 | J15: 25 | K15: 23.8 | L15: 23.8 | M15: 23.8 | N15: 25.4 | P15: 23 | Q15: 24
A16: Peas | B16: 48 | C16: 48.1 | D16: 48.1 | E16: 48.1 | F16: 48.1 | G16: 48.1 | I16: 48 | J16: 50 | K16: 48.1 | L16: 45.3 | M16: 46.7 | N16: 50.9 | P16: 45 | Q16: 48
A17: Beans - Pinto | B17: 1850 | C17: 1942 | D17: 1942 | E17: 1554 | F17: 1942 | G17: 1845 | I17: 1900 | J17: 1900 | K17: 1849 | L17: 1916 | M17: 1882.5 | N17: 1919 | P17: 1710 | Q17: 1805
A18: Beans - White | B18: 1675 | C18: 1885 | D18: 1885 | E18: 1508 | F18: 1885 | G18: 1790.75 | I18: 1700 | J18: 1700 | K18: 1518 | L18: 1675 | M18: 1596.5 | N18: 1696 | P18: 1530 | Q18: 1615
A19: Beans - Black | B19: 1650 | C19: 1713 | D19: 1713 | E19: 1371 | F19: 1713 | G19: 1627.5 | I19: 1700 | J19: 1700 | K19: 1632 | L19: 1692 | M19: 1662 | N19: 1685 | P19: 1530 | Q19: 1615
B21: Avg 2,5,6,12
A22: 80% Crop ($/Acre) | B22: Manitoba | C22: Risk Area #2 | D22: Risk Area #5 | E22: Risk Area #6 | F22: Risk Area #12 | G22: Avg.
A23: Canola | B23: 7.715 | C23: 5.01 | D23: 5.47 | E23: 6.54 | F23: 13.84 | G23: 7.715
A24: Soybeans | B24: 13.0225 | C24: 12.84 | D24: 12.84 | E24: 13.29 | F24: 13.12 | G24: 13.0225
A25: Wheat - Hard Red Spring | B25: 5.505 | C25: 4.69 | D25: 4.43 | E25: 4.97 | F25: 7.93 | G25: 5.505
A26: Wheat - Northern Hard Red | B26: 7.225 | C26: 6.73 | D26: 4.7 | E26: 5.99 | F26: 11.48 | G26: 7.225
A27: Wheat - Special Purpose | B27: 7.2475 | C27: 5.95 | D27: 6.58 | E27: 5.93 | F27: 10.53 | G27: 7.2475
A28: Wheat - Prairie Spring | B28: 5.345 | C28: 5.31 | D28: 4.07 | E28: 5.19 | F28: 6.81 | G28: 5.345
A29: Wheat - Winter | B29: 5.485 | C29: 5.81 | D29: 6.65 | E29: 5.26 | F29: 4.22 | G29: 5.485
A30: Barley | B30: 8.015 | C30: 7.14 | D30: 6.13 | E30: 7.11 | F30: 11.68 | G30: 8.015
A31: Oats | B31: 12.025 | C31: 14.33 | D31: 9.67 | E31: 10.18 | F31: 13.92 | G31: 12.025
A32: Corn | B32: 22.3175 | C32: 21.23 | D32: 21.04 | E32: 23.41 | F32: 23.59 | G32: 22.3175
A33: Peas | B33: 8.0325 | C33: 8 | D33: 8.07 | E33: 8.15 | F33: 7.91 | G33: 8.0325
A34: Fall Rye | B34: 10.2925 | C34: 11.73 | D34: 9.01 | E34: 9.22 | F34: 11.21 | G34: 10.2925
A35: Flaxseed | B35: 11.575 | C35: 11.35 | D35: 11.13 | E35: 9.15 | F35: 14.67 | G35: 11.575
A36: Beans - Pinto | B36: 24.09 | C36: 23.88 | D36: 24.09 | E36: 24.72 | F36: 23.67 | G36: 24.09
A37: Beans - White | B37: 21.4375 | C37: 21.43 | D37: 21.63 | E37: 21.84 | F37: 20.85 | G37: 21.4375
A38: Sunflower Oil | B38: 14.0375 | C38: 13.92 | D38: 14.07 | E38: 14.37 | F38: 13.79 | G38: 14.0375
A39: Sunflower Confection | B39: 28.23 | C39: 28.03 | D39: 28.35 | E39: 28.85 | F39: 27.69 | G39: 28.23
A40: Hempseed | B40: 30.1025 | C40: 30.06 | D40: 30.24 | E40: 30.66 | F40: 29.45 | G40: 30.1025
A41: Black Bean | B41: 27.4425 | C41: 27.39 | D41: 27.57 | E41: 27.99 | F41: 26.82 | G41: 27.4425
A42: Kidney Bean | B42: 39.66 | C42: 39.48 | D42: 39.92 | E42: 40.4 | F42: 38.84 | G42: 39.66
A43: Buckwheat | B43: 15.48 | C43: 15.41 | D43: 15.58 | E43: 15.76 | F43: 15.17 | G43: 15.48
A44: Canaryseed | B44: 19.5475 | C44: 19.45 | D44: 19.72 | E44: 19.85 | F44: 19.17 | G44: 19.5475
A45: Fababean | B45: 30.1025 | C45: 30.06 | D45: 30.24 | E45: 30.66 | F45: 29.45 | G45: 30.1025
A46: Lentil | B46: 13.86 | C46: 10.43 | D46: 15.01 | E46: 15.3 | F46: 14.7 | G46: 13.86
B48: 2024
A49: Market Price ($/unit) | B49: $/bu | C49: ROW # | D49: ROW #
A50: Wheat - Hard Red Spring | B50: 9.25 | C50: 2 | D50: 3
A51: Wheat - Northern Hard Red | B51: 8.75 | C51: 3 | D51: 4
A52: Wheat - Prairie Spring | B52: 8.75 | C52: 4 | D52: 5
A53: Wheat - Winter | B53: 8 | C53: 5 | D53: 6
A54: Oats | B54: 5 | C54: 6 | D54: 7
A55: Barley | B55: 6.25 | C55: 7 | D55: 8
A56: Hybrid Fall Rye | B56: 6.5 | C56: 8 | D56: 9
A57: Corn | B57: 6.25 | C57: 9 | D57: 10
A58: Canola | B58: 15.75 | C58: 10 | D58: 11
A59: Soybeans | B59: 15.25 | C59: 11 | D59: 12
A60: Sunflower | B60: 0.25 | C60: 12 | D60: 13
A61: Flaxseed | B61: 16 | C61: 13 | D61: 14
A62: Peas | B62: 9.5 | C62: 14 | D62: 15
A63: Beans - Pinto | B63: 0.5 | C63: 15 | D63: 16
A64: Beans - White | B64: 0.5 | C64: 16 | D64: 17
A65: Beans - Black | B65: 0.5 | C65: 17 | D65: 18
A67: Base EMI premium / acre ($50) | D67: 0.54
A69: Hail Ins. coverage / acre | C69: 300
D70: Cost per Acre
B72: Rate | C72: Avg 2,5,6,12
A73: HAIL Ins. Costs | B73: Factor | C73: Manitoba | D73: Risk Area #2 | E73: Risk Area #5 | F73: Risk Area #6 | G73: Risk Area #12
D74: 3.3 | E74: 3.8 | F74: 3 | G74: 2.5
A75: Canola | B75: 1 | C75: =AVERAGE(E75,F75,D75,G75) -> 9.45 | D75: =((D$74*$B75)/100)*$C$69 -> 9.9 | E75: 11.4 | F75: 9 | G75: 7.5
A76: Soybeans | B76: 1.3 | C76: 12.285 | D76: 12.87 | E76: 14.82 | F76: 11.7 | G76: 9.75
A77: Wheat - Hard Red Spring | B77: 1 | C77: 9.45 | D77: 9.9 | E77: 11.4 | F77: 9 | G77: 7.5
A78: Wheat - Northern Hard Red | B78: 1 | C78: 9.45 | D78: 9.9 | E78: 11.4 | F78: 9 | G78: 7.5
A79: Wheat - Special Purpose | B79: 1 | C79: 9.45 | D79: 9.9 | E79: 11.4 | F79: 9 | G79: 7.5
A80: Wheat - Prairie Spring | B80: 1 | C80: 9.45 | D80: 9.9 | E80: 11.4 | F80: 9 | G80: 7.5
A81: Wheat - Winter | B81: 1 | C81: 9.45 | D81: 9.9 | E81: 11.4 | F81: 9 | G81: 7.5
A82: Barley | B82: 1 | C82: 9.45 | D82: 9.9 | E82: 11.4 | F82: 9 | G82: 7.5
A83: Oats | B83: 1 | C83: 9.45 | D83: 9.9 | E83: 11.4 | F83: 9 | G83: 7.5
A84: Corn | B84: 1 | C84: 9.45 | D84: 9.9 | E84: 11.4 | F84: 9 | G84: 7.5
A85: Peas | B85: 2 | C85: 18.9 | D85: =((D$74*$B85)/100)*$C$69 -> 19.8 | E85: 22.8 | F85: 18 | G85: 15
A86: Fall Rye | B86: 1 | C86: 9.45 | D86: 9.9 | E86: 11.4 | F86: 9 | G86: 7.5
A87: Flaxseed | B87: 1 | C87: 9.45 | D87: 9.9 | E87: 11.4 | F87: 9 | G87: 7.5
A88: Beans - Pinto | B88: 1.75 | C88: 16.5375 | D88: 17.325 | E88: 19.95 | F88: 15.75 | G88: 13.125
A89: Beans - White | B89: 1.75 | C89: 16.5375 | D89: 17.325 | E89: 19.95 | F89: 15.75 | G89: 13.125
A90: Sunflower Oil | B90: 1 | C90: 9.45 | D90: 9.9 | E90: 11.4 | F90: 9 | G90: 7.5
A91: Sunflower Confection | B91: 1 | C91: 9.45 | D91: 9.9 | E91: 11.4 | F91: 9 | G91: 7.5
A92: Hempseed | B92: 2 | C92: 18.9 | D92: 19.8 | E92: 22.8 | F92: 18 | G92: 15
A93: Black Bean | B93: 1.75 | C93: 16.5375 | D93: 17.325 | E93: 19.95 | F93: 15.75 | G93: 13.125
A94: Kidney Bean | B94: 1.75 | C94: 16.5375 | D94: 17.325 | E94: 19.95 | F94: 15.75 | G94: 13.125
A95: Buckwheat | B95: 2.5 | C95: 23.625 | D95: 24.75 | E95: 28.5 | F95: 22.5 | G95: 18.75
A96: Canaryseed | B96: 1 | C96: 9.45 | D96: 9.9 | E96: 11.4 | F96: 9 | G96: 7.5
A97: Fababean | B97: 1.75 | C97: 16.5375 | D97: 17.325 | E97: 19.95 | F97: 15.75 | G97: 13.125
A98: Lentil | B98: 1.3 | C98: 12.285 | D98: 12.87 | E98: 14.82 | F98: 11.7 | G98: 9.75
F101: Bulk Price | I101: Actual Nutrient | K101: Nitrogen | P101: Nitrogen
A102: Fertilizer Type | F102: $/tonne | I102: $/lb | K102: Usage | P102: Usage
B103: Nitrogen: (urea) 46-0-0 | F103: 825 | I103: =SUM(F103/(2204.5855*0.46)) -> 0.8135217531 | K103: 0.5 | P103: 0.5
B104: Nitrogen: (NH3) 82-0-0 | F104: 1300 | I104: =SUM(F104/(2204.5855*0.82)) -> 0.7191219636 | K104: 0.5 | P104: 0.5
B105: Phosphorus: 11-52-0 | F105: 1075 | I105: =SUM((F105-(I103*(0.11*2204.5855)))/(2204.5855*0.52)) -> 0.7656396453
B106: Potash: 0-0-60 | F106: 625 | I106: =SUM(F106/(2204.5855*0.6)) -> 0.4725000081
B107: Sulphur: 20.5-0-0-24 | F107: 600 | I107: =SUM((F107-(I103*(0.205*2204.5855)))/(2204.5855*0.24)) -> 0.4391168554

Sheet Chart Data (HIDE) (hidden)
B3: Producer - Total Cost (Risk) vs. Return on Investment (Reward) Analysis
B4: Landowner - Return on Assest (ROA) Analysis | G4: Landowner Rent $/Ac (Reward) | H4: Producer Profit $/Ac (Reward)
C5: Operating Costs | D5: Labour / Owner Salary Costs | E5: Equipment Costs | F5: Storage Costs | G5: Land Rent $/Ac | H5: Producer Profit Margin $/Ac | I5: Producer Return on Investment or ROI (Reward) | J5: Landowner Return on Asset (ROA) | K5: Total Costs $/Ac (Risk)
A6: 1 | B6: Production Cost Rent (Low Range) | C6: ='Land Rent '!H34 -> 370.0560482 | D6: ='Land Rent '!H35 -> 27 | E6: ='Land Rent '!H36 -> 89.1459975 | G6: ='Land Rent '!G43 -> 71 | H6: ='Land Rent '!I40 -> 30 | I6: ='Land Rent '!I69 -> 0.05410596484 | J6: ='Land Rent '!G65 -> 0.01710843373 | K6: =SUM(C6:G6) -> 557.2020457
A7: 2 | B7: Production Cost Rent (High Range) | C7: ='Land Rent '!H34 -> 370.0560482 | D7: ='Land Rent '!H35 -> 27 | E7: ='Land Rent '!H36 -> 89.1459975 | G7: ='Land Rent '!I43 -> 86 | H7: ='Land Rent '!G40 -> 15 | I7: ='Land Rent '!G69 -> 0.02647308657 | J7: ='Land Rent '!I65 -> 0.02072289157 | K7: =SUM(C7:G7) -> 572.2020457
A8: 4 | B8: Land Value Rent (Low Range) | C8: ='Land Rent '!G83 -> 370.0560482 | D8: ='Land Rent '!G84 -> 27 | E8: ='Land Rent '!G85 -> 89.1459975 | G8: ='Land Rent '!G87 -> 93 | H8: ='Land Rent '!G88 -> 8 | I8: ='Land Rent '!G90 -> 0.01406755096 | J8: ='Land Rent '!G91 -> 0.02240963855 | K8: =SUM(C8:G8) -> 579.2020457
B9: Land Value Rent (High Range) | C9: ='Land Rent '!G83 -> 370.0560482 | D9: ='Land Rent '!G84 -> 27 | E9: ='Land Rent '!G85 -> 89.1459975 | G9: ='Land Rent '!H87 -> 114 | H9: ='Land Rent '!H88 -> -13 | I9: ='Land Rent '!H90 -> -0.02141286555 | J9: ='Land Rent '!H91 -> 0.02746987952 | K9: =SUM(C9:G9) -> 600.2020457
A10: 3 | B10: Maximum Breakeven Land Rent | C10: ='Land Rent '!H34 -> 370.0560482 | D10: ='Land Rent '!H35 -> 27 | E10: ='Land Rent '!H36 -> 89.1459975 | G10: ='Land Rent '!H37 -> 101.1479543 | H10: 0 | I10: ='Land Rent '!L69 -> 0 | J10: =SUM(('Land Rent '!H37-'Land Rent '!H77)/('Land Rent '!H75)) -> 0.02437300103 | K10: =SUM(C10:G10) -> 587.35
B12: Land Rent - Summary
B13: Producer - Profit Margin Summary
B17: Producer - Flex Rent Risk & Reward Analysis
B18: Landowner - Flex Rent Profitability Analysis | G18: Landowner Rent $/Ac (Reward) | H18: Producer Profit $/Ac (Reward)
C19: Operating Costs | D19: Labour / Owner Salary Costs | E19: Equipment Costs | F19: Storage Costs | G19: Land Rent $/Ac | H19: Producer Profit Margin $/Ac | I19: Producer ROI (Reward) | J19: Landowner ROA (Reward) | K19: Total Costs $/Ac (Risk)
B20: Minimum Rental Rate | C20: =C21 -> 367.5606459 | D20: =D21 -> 27 | E20: =E21 -> 89.1459975 | F20: =F21 -> 0 | G20: ='Flexible Land Rent'!B17 -> 63 | H20: ='Flexible Land Rent'!G103 -> -102.7066434 | I20: ='Flexible Land Rent'!G94 -> -0.1878642681 | J20: ='Flexible Land Rent'!G90 -> 0.01518072289 | K20: =SUM(C20:G20) -> 546.7066434
B21: Flexible Land Rent Payment Due - (Actual Yield & Price) | C21: =HLOOKUP('Flexible Land Rent'!F7,'Land Rent '!D9:J26,10,FALSE) -> 367.5606459 | D21: =D23 -> 27 | E21: =E23 -> 89.1459975 | F21: =HLOOKUP('Flexible Land Rent'!F7,'Land Rent '!D9:J26,13,FALSE) -> 0 | G21: =IF('Flexible Land Rent'!E30<'Flexible Land Rent'!B17,'Flexible Land Rent'!B17,IF('Flexible Land Rent'!E30>'Flexible Land Rent'!G17,'Flexible Land Rent'!G17,'Flexible Land Rent'!E30)) -> 79 | H21: ='Flexible Land Rent'!G85 -> -7.706643432 | I21: ='Flexible Land Rent'!G76 -> -0.01369566811 | J21: ='Flexible Land Rent'!G72 -> 0.01903614458 | K21: =SUM(C21:G21) -> 562.7066434
B22: Maximum Rental Rate | C22: =C21 -> 367.5606459 | D22: =D21 -> 27 | E22: =E21 -> 89.1459975 | F22: =F21 -> 0 | G22: ='Flexible Land Rent'!G17 -> 94 | H22: ='Flexible Land Rent'!G121 -> 88.29335657 | I22: ='Flexible Land Rent'!G112 -> 0.1528342413 | J22: ='Flexible Land Rent'!G108 -> 0.02265060241 | K22: =SUM(C22:G22) -> 577.7066434
B23: Avg. Production Cost Rent | C23: =C6 -> 370.0560482 | D23: =D6 -> 27 | E23: =E6 -> 89.1459975 | F23: =F6 -> 0 | G23: =AVERAGE(G6:G7) -> 78.5 | H23: =AVERAGE(H6:H7) -> 22.5 | I23: ='Land Rent '!J69 -> 0.04010602488 | J23: ='Land Rent '!J65 -> 0.01891566265 | K23: =SUM(C23:G23) -> 564.7020457
B26: Avg. Production Cost Based Rental Rate - Share of Gross Revenue
B27: Gross Revenue | D27: ='Land Rent '!H33 -> 587.35
B28: Margin Over Operating Costs | D28: =SUM(D27-D29) -> 217.2939518
B29: Operating Costs | C29: =SUM(D29/$D$27) -> 0.6300434974 | D29: ='Land Rent '!H34 -> 370.0560482 | F29: Low | G29: high
B30: Land Rent | C30: =SUM(D30/$D$27) -> 0.133651145 | D30: =AVERAGE(G6:G7) -> 78.5 | F30: =G6/D27 -> 0.1208819273 | G30: =SUM(G7/D27) -> 0.1464203626 | H30: gross
B31: Equipment Cost | C31: =SUM(D31/$D$27) -> 0.1517766196 | D31: ='Land Rent '!H36 -> 89.1459975
B32: Producer Profit | C32: =SUM(D32/$D$27) -> 0.03830765302 | D32: =AVERAGE(H6:H7) -> 22.5
B33: Owner Labour & Living Costs | C33: =SUM(D33/$D$27) -> 0.04596918362 | D33: ='Land Rent '!H35 -> 27
B39: Avg. Production Cost Based Rental Rate - Share of Margin Over Operating Cost
B40: Gross Revenue | D40: ='Land Rent '!H33 -> 587.35
B41: Margin Over Operating Costs | D41: =SUM(D40-D42) -> 217.2939518
B42: Operating Costs | C42: =SUM(D42/$D$27) -> 0.6300434974 | D42: ='Land Rent '!H34 -> 370.0560482 | F42: Low | G42: high
B43: Land Rent | C43: =SUM(D43/$D$41) -> 0.3612617809 | D43: =D30 -> 78.5 | F43: =G6/D41 -> 0.3267463241 | G43: =SUM(G7/D41) -> 0.3957772376 | H43: MOA
B44: Equipment Cost | C44: =SUM(D44/$D$41) -> 0.4102553098 | D44: ='Land Rent '!H36 -> 89.1459975
B45: Producer Profit | C45: =SUM(D45/$D$41) -> 0.1035463703 | D45: =D32 -> 22.5
B46: Owner Labour & Living Costs | C46: =SUM(D46/$D$41) -> 0.1242556444 | D46: ='Land Rent '!H35 -> 27
